{"text_format":"1","workbook":"xlsx","n_sheets":11,"sheets":["00_Demarrage","01_TypesEquipe","02_Personnel_Competences","03_Equipements","04_Ordres","05_Planning","06_Affectations","07_PlanOrdres","08_Affichage","_Config","_PlanData"],"not_rendered":{"charts":0,"images":1,"macros":1,"external_links":0,"defined_names":47,"comments":0,"pivot_tables":0},"unopened":[],"bounds":{"document_bytes":16777216,"sheet_cells":100000,"rows_first":2000,"rows_last":500,"rows_between":2000,"halvings":0,"cell_chars":16384,"cell_head_chars":4096},"cells_cut":0,"cells_raw":0,"read":"whole","date_system":"1900"}

{"sheet":"00_Demarrage","index":0,"n_rows":29,"n_cols":4,"rows_kept":29,"cut":false,"hidden":false,"merged":[[28,0,28,1],[4,3,4,4],[5,3,7,4],[8,3,8,4],[9,3,9,4],[10,3,10,4],[11,3,11,4],[12,3,12,4],[13,3,13,4],[15,3,15,4],[16,3,22,4],[23,3,23,4],[16,0,16,1],[18,0,18,1],[25,0,25,1],[26,0,26,1],[27,0,27,1],[0,0,0,1],[2,0,2,1],[1,3,3,3],[3,0,3,1],[6,0,6,1]]}
["Planification des équipes et de la production: modèle Excel"]
[]
["Piloter la planification : définir la période, créer un plan et consulter le statut."]
["L'année de planification et la date de début doivent correspondre. Les saisies manuelles du planning restent lors de la création du plan."]
["Usine","Usine Cosmétique Exemple SARL",null,"Intéressé par une planification de production entièrement automatique ?"]
["Année de planification",2026,null,"Notre logiciel prend en compte toute la complexité de votre entreprise, informe tous les services des changements et planifie toutes les ressources en moins d'une minute. Découvrez-le vous-même avec la démo guidée ou contactez-nous via les liens ci-dessous."]
["Période de planification"]
["Date de début","2026-07-20"]
["Heure de début","06:00:00",null,"Démo logicielle gratuite"]
["Nombre de jours",5,null,"Nous contacter"]
["Date de fin",{"$f":"B8+B10-1","v":"2026-07-24"},null,"onsector GmbH"]
[null,null,null,"Hagenbacher Straße 6"]
[null,null,null,"76187 Karlsruhe"]
[null,null,null,"info@onsector.de"]
[]
[null,null,null,"Clause de non-responsabilité"]
["Version 1.0 : les macros sont intégrées (.xlsm). Activez-les dans Excel lorsque vous y êtes invité.",null,null,"Ce modèle Excel est fourni comme aide de démonstration et de planification non contraignante. onsector GmbH n'offre aucune garantie quant aux fonctions, caractéristiques ou résultats de planification, et décline toute responsabilité quant à leur exactitude, exhaustivité ou adéquation à un usage particulier. Aucun droit à support, maintenance ou mise à jour n'est inclus. Pour un usage en production, nous recommandons une solution professionnelle. N'hésitez pas à nous contacter à ce sujet."]
[]
["Statut"]
["Postes non pourvus",0]
["Compétences manquantes",0]
["Affectations indisponibles",0]
["Ordres ouverts",0]
[null,null,null,"Version 1.0, juillet 2026"]
[]
["Guide en 3 étapes"]
["1. Gérez le personnel, les compétences, les types d'équipe et la disponibilité du personnel dans le planning des équipes."]
["2. Saisissez les ordres avec l'équipement, le début, la date d'échéance et la durée en heures."]
["3. Créez un plan, puis vérifiez ou ajustez les affectations de chaque équipe."]

{"sheet":"01_TypesEquipe","index":1,"n_rows":10,"n_cols":5,"rows_kept":10,"cut":false,"hidden":false,"merged":[[2,0,2,4]]}
["Types d'équipe"]
["Définir les types d'équipe productifs et non productifs."]
["Les codes du planning y sont définis. Pas de lignes vides => le premier code vide termine la liste."]
["Code","Nom","Début","Fin","Catégorie"]
["F","Matin","06:00:00","14:00:00","productif"]
["S","Après-midi","14:00:00","22:00:00","productif"]
["N","Nuit","22:00:00","06:00:00","productif"]
["U","Congés","00:00:00","23:59:00","absent"]
["K","Maladie","00:00:00","23:59:00","absent"]
["-","Libre",null,null,"libre"]

{"sheet":"02_Personnel_Competences","index":2,"n_rows":13,"n_cols":19,"rows_kept":13,"cut":false,"hidden":false,"merged":[[2,0,2,18]]}
["Personnel et compétences"]
["Gérer les données personnel et compétences pour l'affectation aux équipements."]
["Les ID doivent correspondre au planning. Pas de lignes vides dans la colonne ID. X = compétence disponible."]
["ID du personnel","Nom","Équipe","Actif","Mélange","Remplissage","Conditionnement","Contrôle qualité","Conduite de machine","Réglage","Nettoyage","Maintenance","Approvisionnement en matières","Documentation des lots","Pesage","Étiquetage","Palettisation","Contrôle d'hygiène","Dépannage"]
["P001","Jean Martin","Team 1","Oui","X","X","X","X","X","X","X","X","X","X","X","X","X","X"]
["P002","Anne Bernard","Team 1","Oui",null,"X","X","X","X","X","X","X","X","X","X","X","X","X","X"]
["P003","Michel Dubois","Team 1","Oui","X",null,"X","X","X","X","X","X","X","X","X","X","X","X","X"]
["P004","Patricia Robert","Team 2","Oui","X","X",null,"X","X","X","X","X","X","X","X","X","X","X","X"]
["P005","Thomas Richard","Team 2","Oui","X","X","X",null,"X","X","X","X","X","X","X","X","X","X","X"]
["P006","Julie Petit","Team 2","Oui","X","X","X","X",null,"X","X","X","X","X","X","X","X","X","X"]
["P007","Laura Durand","Team 3","Oui","X","X","X","X","X",null,"X","X","X","X","X","X","X","X","X"]
["P008","Stéphane Leroy","Team 3","Oui","X","X","X","X","X","X",null,"X","X","X","X","X","X","X","X"]
["P009","Nina Moreau","Team 3","Oui","X","X","X","X","X","X","X",null,"X","X","X","X","X","X","X"]

{"sheet":"03_Equipements","index":3,"n_rows":8,"n_cols":6,"rows_kept":8,"cut":false,"hidden":false,"merged":[[2,0,2,5]]}
["Équipements"]
["Enregistrer les équipements avec compétence requise et besoin en personnel."]
["Les ID doivent apparaître sur la feuille Ordres. Liste contiguë => le premier ID vide termine le tableau."]
["ID de l'équipement","Nom","Capacité de l'équipement","Compétence requise","Personnel requis","Actif"]
["A01","Cuve de mélange","Mélange","Mélange",1,"Oui"]
["A02","Ligne de remplissage","Remplissage","Remplissage",1,"Oui"]
["A03","Ligne de conditionnement","Conditionnement","Conditionnement",1,"Oui"]
["A04","Étiqueteuse","Étiquetage","Étiquetage",1,"Oui"]

{"sheet":"04_Ordres","index":4,"n_rows":24,"n_cols":12,"rows_kept":24,"cut":false,"hidden":false,"merged":[[2,0,2,7]]}
["Ordres"]
["Saisir les ordres ouverts avec début au plus tôt, date d'échéance, priorité et durée. La date d'échéance détermine l'ordre de planification, pas la limite d'affectation."]
["Seul le statut Ouvert est planifié. Pas de lignes vides entre ordres. L'ID équipement doit exister sur la feuille Équipements."]
["Ordre","Description","Début au plus tôt","Date d'échéance","Priorité","ID de l'équipement","Durée en heures","Statut",null,null,"Couleurs de statut","Couleur"]
["AO-2026-0140","Produit A",null,"2026-07-21T22:00:00",1,"A02",12,"Ouvert",null,null,"Ouvert"]
["AO-2026-0141","Produit B",null,"2026-07-23T14:00:00",2,"A01",10,"Ouvert",null,null,"Planifié"]
["AO-2026-0142","Produit C","2026-07-22T22:00:00","2026-07-24T06:00:00",3,"A04",8,"Ouvert",null,null,"En cours"]
["AO-2026-0143","Produit D",null,"2026-07-20T22:00:00",2,"A03",6,"Ouvert",null,null,"Terminé"]
["AO-2026-0144","Produit E",null,"2026-07-24T22:00:00",3,"A02",8,"Ouvert",null,null,"Annulé"]
["AO-2026-0145","Produit F",null,"2026-07-25T22:00:00",1,"A01",6,"Ouvert"]
["AO-2026-0146","Produit G","2026-07-21T22:00:00","2026-07-22T06:00:00",1,"A04",4,"Ouvert"]
["AO-2026-0147","Produit H","2026-07-20T22:00:00","2026-07-21T06:00:00",2,"A02",6,"Ouvert"]
["AO-2026-0148","Produit I","2026-07-21T06:00:00","2026-07-21T10:00:00",1,"A01",4,"Ouvert"]
["AO-2026-0149","Produit J",null,"2026-07-22T14:00:00",2,"A03",8,"Ouvert"]
["AO-2026-0150","Produit K","2026-07-21T18:00:00","2026-07-22T18:00:00",3,"A04",5,"Ouvert"]
["AO-2026-0151","Produit L",null,"2026-07-22T06:00:00",2,"A02",14,"Ouvert"]
["AO-2026-0152","Produit M","2026-07-22T14:00:00","2026-07-23T10:00:00",3,"A01",6,"Ouvert"]
["AO-2026-0153","Produit N",null,"2026-07-23T22:00:00",1,"A03",4,"Ouvert"]
["AO-2026-0154","Produit O","2026-07-23T14:00:00","2026-07-23T22:00:00",2,"A02",7,"Ouvert"]
["AO-2026-0155","Produit P","2026-07-24T06:00:00","2026-07-24T14:00:00",1,"A01",6,"Ouvert"]
["AO-2026-0156","Produit Q",null,"2026-07-24T22:00:00",2,"A03",5,"Ouvert"]
["AO-2026-0157","Produit R","2026-07-24T22:00:00","2026-07-25T06:00:00",3,"A04",4,"Ouvert"]
["AO-2026-0158","Produit S","2026-07-22T06:00:00","2026-07-24T10:00:00",2,"A02",9,"Ouvert"]
["AO-2026-0159","Produit T",null,"2026-07-25T06:00:00",1,"A01",8,"Ouvert"]

{"sheet":"05_Planning","index":5,"n_rows":542,"n_cols":39,"rows_kept":542,"cut":false,"hidden":false,"merged":[[408,0,408,38],[453,0,453,38],[498,0,498,38],[183,0,183,38],[228,0,228,38],[273,0,273,38],[318,0,318,38],[363,0,363,38],[2,0,2,38],[3,0,3,38],[48,0,48,38],[93,0,93,38],[138,0,138,38]]}
["Planning des équipes"]
["Disponibilité par personne et jour: base de toutes les affectations."]
["Choisir les codes sur la feuille Types d'équipe. Saisir les personnes sans trous. La période doit être dans le bloc du mois concerné."]
["Janvier 2026"]
[null,null,null,"Je","Ve","Sa","Di","Lu","Ma","Me","Je","Ve","Sa","Di","Lu","Ma","Me","Je","Ve","Sa","Di","Lu","Ma","Me","Je","Ve","Sa","Di","Lu","Ma","Me","Je","Ve","Sa"]
[null,null,null,1,2,3,4,5,6,7,8,9,10,11,12,13,14,15,16,17,18,19,20,21,22,23,24,25,26,27,28,29,30,31]
["ID du personnel","Nom","Équipe","01 Je","02 Ve","03 Sa","04 Di","05 Lu","06 Ma","07 Me","08 Je","09 Ve","10 Sa","11 Di","12 Lu","13 Ma","14 Me","15 Je","16 Ve","17 Sa","18 Di","19 Lu","20 Ma","21 Me","22 Je","23 Ve","24 Sa","25 Di","26 Lu","27 Ma","28 Me","29 Je","30 Ve","31 Sa","F total","S total","N total","U total","K total"]
["P001","Jean Martin","Team 1","F","F",null,null,"F","F","F","F","F",null,null,"F","F","F","F","F",null,null,"F","F","F","F","F",null,null,"F","F","F","F","F",null,{"$f":"IF(A8=\"\",\"\",COUNTIF(D8:AH8,\"F\"))","v":22},{"$f":"IF(A8=\"\",\"\",COUNTIF(D8:AH8,\"S\"))","v":0},{"$f":"IF(A8=\"\",\"\",COUNTIF(D8:AH8,\"N\"))","v":0},{"$f":"IF(A8=\"\",\"\",COUNTIF(D8:AH8,\"U\"))","v":0},{"$f":"IF(A8=\"\",\"\",COUNTIF(D8:AH8,\"K\"))","v":0}]
["P002","Anne Bernard","Team 1","F","F",null,null,"F","F","F","F","F",null,null,"F","F","F","F","F",null,null,"F","F","F","F","F",null,null,"F","F","F","F","F",null,22,0,0,0,0]
["P003","Michel Dubois","Team 1","F","F",null,null,"F","F","F","F","F",null,null,"F","F","F","F","F",null,null,"F","F","F","F","F",null,null,"F","F","F","F","F",null,22,0,0,0,0]
["P004","Patricia Robert","Team 2","S","S",null,null,"S","S","S","S","S",null,null,"S","S","S","S","S",null,null,"S","S","S","S","S",null,null,"S","S","S","S","S",null,0,22,0,0,0]
["P005","Thomas Richard","Team 2","S","S",null,null,"S","S","S","S","S",null,null,"S","S","S","S","S",null,null,"S","S","S","S","S",null,null,"S","S","S","S","S",null,0,22,0,0,0]
["P006","Julie Petit","Team 2","S","S",null,null,"S","S","S","S","S",null,null,"S","S","S","S","S",null,null,"S","S","S","S","S",null,null,"S","S","S","S","S",null,0,22,0,0,0]
["P007","Laura Durand","Team 3","N","N",null,null,"N","N","N","N","N",null,null,"N","N","N","N","N",null,null,"N","N","N","N","N",null,null,"N","N","N","N","N",null,0,0,22,0,0]
["P008","Stéphane Leroy","Team 3","N","N",null,null,"N","N","N","N","N",null,null,"N","N","N","N","N",null,null,"N","N","N","N","N",null,null,"N","N","N","N","N",null,0,0,22,0,0]
["P009","Nina Moreau","Team 3","N","N",null,null,"N","N","N","N","N",null,null,"N","N","N","N","N",null,null,"N","N","N","N","N",null,null,"N","N","N","N","N",null,0,0,22,0,0]
[null,null,null,null,null,null,null,null,null,null,null,null,null,null,null,null,null,null,null,null,null,null,null,null,null,null,null,null,null,null,null,null,null,null,"","","","",""]
[null,null,null,null,null,null,null,null,null,null,null,null,null,null,null,null,null,null,null,null,null,null,null,null,null,null,null,null,null,null,null,null,null,null,"","","","",""]
[null,null,null,null,null,null,null,null,null,null,null,null,null,null,null,null,null,null,null,null,null,null,null,null,null,null,null,null,null,null,null,null,null,null,"","","","",""]
[null,null,null,null,null,null,null,null,null,null,null,null,null,null,null,null,null,null,null,null,null,null,null,null,null,null,null,null,null,null,null,null,null,null,"","","","",""]
[null,null,null,null,null,null,null,null,null,null,null,null,null,null,null,null,null,null,null,null,null,null,null,null,null,null,null,null,null,null,null,null,null,null,"","","","",""]
[null,null,null,null,null,null,null,null,null,null,null,null,null,null,null,null,null,null,null,null,null,null,null,null,null,null,null,null,null,null,null,null,null,null,"","","","",""]
[null,null,null,null,null,null,null,null,null,null,null,null,null,null,null,null,null,null,null,null,null,null,null,null,null,null,null,null,null,null,null,null,null,null,"","","","",""]
[null,null,null,null,null,null,null,null,null,null,null,null,null,null,null,null,null,null,null,null,null,null,null,null,null,null,null,null,null,null,null,null,null,null,"","","","",""]
[null,null,null,null,null,null,null,null,null,null,null,null,null,null,null,null,null,null,null,null,null,null,null,null,null,null,null,null,null,null,null,null,null,null,"","","","",""]
[null,null,null,null,null,null,null,null,null,null,null,null,null,null,null,null,null,null,null,null,null,null,null,null,null,null,null,null,null,null,null,null,null,null,"","","","",""]
[null,null,null,null,null,null,null,null,null,null,null,null,null,null,null,null,null,null,null,null,null,null,null,null,null,null,null,null,null,null,null,null,null,null,"","","","",""]
[null,null,null,null,null,null,null,null,null,null,null,null,null,null,null,null,null,null,null,null,null,null,null,null,null,null,null,null,null,null,null,null,null,null,"","","","",""]
[null,null,null,null,null,null,null,null,null,null,null,null,null,null,null,null,null,null,null,null,null,null,null,null,null,null,null,null,null,null,null,null,null,null,"","","","",""]
[null,null,null,null,null,null,null,null,null,null,null,null,null,null,null,null,null,null,null,null,null,null,null,null,null,null,null,null,null,null,null,null,null,null,"","","","",""]
[null,null,null,null,null,null,null,null,null,null,null,null,null,null,null,null,null,null,null,null,null,null,null,null,null,null,null,null,null,null,null,null,null,null,"","","","",""]
[null,null,null,null,null,null,null,null,null,null,null,null,null,null,null,null,null,null,null,null,null,null,null,null,null,null,null,null,null,null,null,null,null,null,"","","","",""]
[null,null,null,null,null,null,null,null,null,null,null,null,null,null,null,null,null,null,null,null,null,null,null,null,null,null,null,null,null,null,null,null,null,null,"","","","",""]
[null,null,null,null,null,null,null,null,null,null,null,null,null,null,null,null,null,null,null,null,null,null,null,null,null,null,null,null,null,null,null,null,null,null,"","","","",""]
[null,null,null,null,null,null,null,null,null,null,null,null,null,null,null,null,null,null,null,null,null,null,null,null,null,null,null,null,null,null,null,null,null,null,"","","","",""]
[null,null,null,null,null,null,null,null,null,null,null,null,null,null,null,null,null,null,null,null,null,null,null,null,null,null,null,null,null,null,null,null,null,null,"","","","",""]
[null,null,null,null,null,null,null,null,null,null,null,null,null,null,null,null,null,null,null,null,null,null,null,null,null,null,null,null,null,null,null,null,null,null,"","","","",""]
[null,null,null,null,null,null,null,null,null,null,null,null,null,null,null,null,null,null,null,null,null,null,null,null,null,null,null,null,null,null,null,null,null,null,"","","","",""]
[null,null,null,null,null,null,null,null,null,null,null,null,null,null,null,null,null,null,null,null,null,null,null,null,null,null,null,null,null,null,null,null,null,null,"","","","",""]
[null,null,null,null,null,null,null,null,null,null,null,null,null,null,null,null,null,null,null,null,null,null,null,null,null,null,null,null,null,null,null,null,null,null,"","","","",""]
[null,null,null,null,null,null,null,null,null,null,null,null,null,null,null,null,null,null,null,null,null,null,null,null,null,null,null,null,null,null,null,null,null,null,"","","","",""]
[null,null,null,null,null,null,null,null,null,null,null,null,null,null,null,null,null,null,null,null,null,null,null,null,null,null,null,null,null,null,null,null,null,null,"","","","",""]
[null,null,null,null,null,null,null,null,null,null,null,null,null,null,null,null,null,null,null,null,null,null,null,null,null,null,null,null,null,null,null,null,null,null,"","","","",""]
[null,null,null,null,null,null,null,null,null,null,null,null,null,null,null,null,null,null,null,null,null,null,null,null,null,null,null,null,null,null,null,null,null,null,"","","","",""]
[null,null,null,null,null,null,null,null,null,null,null,null,null,null,null,null,null,null,null,null,null,null,null,null,null,null,null,null,null,null,null,null,null,null,"","","","",""]
[null,null,null,null,null,null,null,null,null,null,null,null,null,null,null,null,null,null,null,null,null,null,null,null,null,null,null,null,null,null,null,null,null,null,"","","","",""]
[null,null,null,null,null,null,null,null,null,null,null,null,null,null,null,null,null,null,null,null,null,null,null,null,null,null,null,null,null,null,null,null,null,null,"","","","",""]
[]
["Février 2026"]
[null,null,null,"Di","Lu","Ma","Me","Je","Ve","Sa","Di","Lu","Ma","Me","Je","Ve","Sa","Di","Lu","Ma","Me","Je","Ve","Sa","Di","Lu","Ma","Me","Je","Ve","Sa"]
[null,null,null,1,2,3,4,5,6,7,8,9,10,11,12,13,14,15,16,17,18,19,20,21,22,23,24,25,26,27,28]
["ID du personnel","Nom","Équipe","01 Di","02 Lu","03 Ma","04 Me","05 Je","06 Ve","07 Sa","08 Di","09 Lu","10 Ma","11 Me","12 Je","13 Ve","14 Sa","15 Di","16 Lu","17 Ma","18 Me","19 Je","20 Ve","21 Sa","22 Di","23 Lu","24 Ma","25 Me","26 Je","27 Ve","28 Sa","29 -","30 -","31 -","F total","S total","N total","U total","K total"]
["P001","Jean Martin","Team 1",null,"S","S","S","S","S",null,null,"S","S","S","S","S",null,null,"S","S","S","S","S",null,null,"S","S","S","S","S",null,null,null,null,{"$f":"IF(A53=\"\",\"\",COUNTIF(D53:AH53,\"F\"))","v":0},{"$f":"IF(A53=\"\",\"\",COUNTIF(D53:AH53,\"S\"))","v":20},{"$f":"IF(A53=\"\",\"\",COUNTIF(D53:AH53,\"N\"))","v":0},{"$f":"IF(A53=\"\",\"\",COUNTIF(D53:AH53,\"U\"))","v":0},{"$f":"IF(A53=\"\",\"\",COUNTIF(D53:AH53,\"K\"))","v":0}]
["P002","Anne Bernard","Team 1",null,"S","S","S","S","S",null,null,"S","S","S","S","S",null,null,"S","S","S","S","S",null,null,"S","S","S","S","S",null,null,null,null,0,20,0,0,0]
["P003","Michel Dubois","Team 1",null,"S","S","S","S","S",null,null,"S","S","S","S","S",null,null,"S","S","S","S","S",null,null,"S","S","S","S","S",null,null,null,null,0,20,0,0,0]
["P004","Patricia Robert","Team 2",null,"N","N","N","N","N",null,null,"N","N","N","N","N",null,null,"N","N","N","N","N",null,null,"N","N","N","N","N",null,null,null,null,0,0,20,0,0]
["P005","Thomas Richard","Team 2",null,"N","N","N","N","N",null,null,"N","N","N","N","N",null,null,"N","N","N","N","N",null,null,"N","N","N","N","N",null,null,null,null,0,0,20,0,0]
["P006","Julie Petit","Team 2",null,"N","N","N","N","N",null,null,"N","N","N","N","N",null,null,"N","N","N","N","N",null,null,"N","N","N","N","N",null,null,null,null,0,0,20,0,0]
["P007","Laura Durand","Team 3",null,"F","F","F","F","F",null,null,"F","F","F","F","F",null,null,"F","F","F","F","F",null,null,"F","F","F","F","F",null,null,null,null,20,0,0,0,0]
["P008","Stéphane Leroy","Team 3",null,"F","F","F","F","F",null,null,"F","F","F","F","F",null,null,"F","F","F","F","F",null,null,"F","F","F","F","F",null,null,null,null,20,0,0,0,0]
["P009","Nina Moreau","Team 3",null,"F","F","F","F","F",null,null,"F","F","F","F","F",null,null,"F","F","F","F","F",null,null,"F","F","F","F","F",null,null,null,null,20,0,0,0,0]
[null,null,null,null,null,null,null,null,null,null,null,null,null,null,null,null,null,null,null,null,null,null,null,null,null,null,null,null,null,null,null,null,null,null,"","","","",""]
[null,null,null,null,null,null,null,null,null,null,null,null,null,null,null,null,null,null,null,null,null,null,null,null,null,null,null,null,null,null,null,null,null,null,"","","","",""]
[null,null,null,null,null,null,null,null,null,null,null,null,null,null,null,null,null,null,null,null,null,null,null,null,null,null,null,null,null,null,null,null,null,null,"","","","",""]
[null,null,null,null,null,null,null,null,null,null,null,null,null,null,null,null,null,null,null,null,null,null,null,null,null,null,null,null,null,null,null,null,null,null,"","","","",""]
[null,null,null,null,null,null,null,null,null,null,null,null,null,null,null,null,null,null,null,null,null,null,null,null,null,null,null,null,null,null,null,null,null,null,"","","","",""]
[null,null,null,null,null,null,null,null,null,null,null,null,null,null,null,null,null,null,null,null,null,null,null,null,null,null,null,null,null,null,null,null,null,null,"","","","",""]
[null,null,null,null,null,null,null,null,null,null,null,null,null,null,null,null,null,null,null,null,null,null,null,null,null,null,null,null,null,null,null,null,null,null,"","","","",""]
[null,null,null,null,null,null,null,null,null,null,null,null,null,null,null,null,null,null,null,null,null,null,null,null,null,null,null,null,null,null,null,null,null,null,"","","","",""]
[null,null,null,null,null,null,null,null,null,null,null,null,null,null,null,null,null,null,null,null,null,null,null,null,null,null,null,null,null,null,null,null,null,null,"","","","",""]
[null,null,null,null,null,null,null,null,null,null,null,null,null,null,null,null,null,null,null,null,null,null,null,null,null,null,null,null,null,null,null,null,null,null,"","","","",""]
[null,null,null,null,null,null,null,null,null,null,null,null,null,null,null,null,null,null,null,null,null,null,null,null,null,null,null,null,null,null,null,null,null,null,"","","","",""]
[null,null,null,null,null,null,null,null,null,null,null,null,null,null,null,null,null,null,null,null,null,null,null,null,null,null,null,null,null,null,null,null,null,null,"","","","",""]
[null,null,null,null,null,null,null,null,null,null,null,null,null,null,null,null,null,null,null,null,null,null,null,null,null,null,null,null,null,null,null,null,null,null,"","","","",""]
[null,null,null,null,null,null,null,null,null,null,null,null,null,null,null,null,null,null,null,null,null,null,null,null,null,null,null,null,null,null,null,null,null,null,"","","","",""]
[null,null,null,null,null,null,null,null,null,null,null,null,null,null,null,null,null,null,null,null,null,null,null,null,null,null,null,null,null,null,null,null,null,null,"","","","",""]
[null,null,null,null,null,null,null,null,null,null,null,null,null,null,null,null,null,null,null,null,null,null,null,null,null,null,null,null,null,null,null,null,null,null,"","","","",""]
[null,null,null,null,null,null,null,null,null,null,null,null,null,null,null,null,null,null,null,null,null,null,null,null,null,null,null,null,null,null,null,null,null,null,"","","","",""]
[null,null,null,null,null,null,null,null,null,null,null,null,null,null,null,null,null,null,null,null,null,null,null,null,null,null,null,null,null,null,null,null,null,null,"","","","",""]
[null,null,null,null,null,null,null,null,null,null,null,null,null,null,null,null,null,null,null,null,null,null,null,null,null,null,null,null,null,null,null,null,null,null,"","","","",""]
[null,null,null,null,null,null,null,null,null,null,null,null,null,null,null,null,null,null,null,null,null,null,null,null,null,null,null,null,null,null,null,null,null,null,"","","","",""]
[null,null,null,null,null,null,null,null,null,null,null,null,null,null,null,null,null,null,null,null,null,null,null,null,null,null,null,null,null,null,null,null,null,null,"","","","",""]
[null,null,null,null,null,null,null,null,null,null,null,null,null,null,null,null,null,null,null,null,null,null,null,null,null,null,null,null,null,null,null,null,null,null,"","","","",""]
[null,null,null,null,null,null,null,null,null,null,null,null,null,null,null,null,null,null,null,null,null,null,null,null,null,null,null,null,null,null,null,null,null,null,"","","","",""]
[null,null,null,null,null,null,null,null,null,null,null,null,null,null,null,null,null,null,null,null,null,null,null,null,null,null,null,null,null,null,null,null,null,null,"","","","",""]
[null,null,null,null,null,null,null,null,null,null,null,null,null,null,null,null,null,null,null,null,null,null,null,null,null,null,null,null,null,null,null,null,null,null,"","","","",""]
[null,null,null,null,null,null,null,null,null,null,null,null,null,null,null,null,null,null,null,null,null,null,null,null,null,null,null,null,null,null,null,null,null,null,"","","","",""]
[null,null,null,null,null,null,null,null,null,null,null,null,null,null,null,null,null,null,null,null,null,null,null,null,null,null,null,null,null,null,null,null,null,null,"","","","",""]
[null,null,null,null,null,null,null,null,null,null,null,null,null,null,null,null,null,null,null,null,null,null,null,null,null,null,null,null,null,null,null,null,null,null,"","","","",""]
[null,null,null,null,null,null,null,null,null,null,null,null,null,null,null,null,null,null,null,null,null,null,null,null,null,null,null,null,null,null,null,null,null,null,"","","","",""]
[null,null,null,null,null,null,null,null,null,null,null,null,null,null,null,null,null,null,null,null,null,null,null,null,null,null,null,null,null,null,null,null,null,null,"","","","",""]
[null,null,null,null,null,null,null,null,null,null,null,null,null,null,null,null,null,null,null,null,null,null,null,null,null,null,null,null,null,null,null,null,null,null,"","","","",""]
[]
["Mars 2026"]
[null,null,null,"Di","Lu","Ma","Me","Je","Ve","Sa","Di","Lu","Ma","Me","Je","Ve","Sa","Di","Lu","Ma","Me","Je","Ve","Sa","Di","Lu","Ma","Me","Je","Ve","Sa","Di","Lu","Ma"]
[null,null,null,1,2,3,4,5,6,7,8,9,10,11,12,13,14,15,16,17,18,19,20,21,22,23,24,25,26,27,28,29,30,31]
["ID du personnel","Nom","Équipe","01 Di","02 Lu","03 Ma","04 Me","05 Je","06 Ve","07 Sa","08 Di","09 Lu","10 Ma","11 Me","12 Je","13 Ve","14 Sa","15 Di","16 Lu","17 Ma","18 Me","19 Je","20 Ve","21 Sa","22 Di","23 Lu","24 Ma","25 Me","26 Je","27 Ve","28 Sa","29 Di","30 Lu","31 Ma","F total","S total","N total","U total","K total"]
["P001","Jean Martin","Team 1",null,"N","N","N","N","N",null,null,"N","N","N","N","N",null,null,"N","N","N","N","N",null,null,"N","N","N","N","N",null,null,"N","N",{"$f":"IF(A98=\"\",\"\",COUNTIF(D98:AH98,\"F\"))","v":0},{"$f":"IF(A98=\"\",\"\",COUNTIF(D98:AH98,\"S\"))","v":0},{"$f":"IF(A98=\"\",\"\",COUNTIF(D98:AH98,\"N\"))","v":22},{"$f":"IF(A98=\"\",\"\",COUNTIF(D98:AH98,\"U\"))","v":0},{"$f":"IF(A98=\"\",\"\",COUNTIF(D98:AH98,\"K\"))","v":0}]
["P002","Anne Bernard","Team 1",null,"N","N","N","N","N",null,null,"N","N","N","N","N",null,null,"N","N","N","N","N",null,null,"N","N","N","N","N",null,null,"N","N",0,0,22,0,0]
["P003","Michel Dubois","Team 1",null,"N","N","N","N","N",null,null,"N","N","N","N","N",null,null,"N","N","N","N","N",null,null,"N","N","N","N","N",null,null,"N","N",0,0,22,0,0]
["P004","Patricia Robert","Team 2",null,"F","F","F","F","F",null,null,"F","F","F","F","F",null,null,"F","F","F","F","F",null,null,"F","F","F","F","F",null,null,"F","F",22,0,0,0,0]
["P005","Thomas Richard","Team 2",null,"F","F","F","F","F",null,null,"F","F","F","F","F",null,null,"F","F","F","F","F",null,null,"F","F","F","F","F",null,null,"F","F",22,0,0,0,0]
["P006","Julie Petit","Team 2",null,"F","F","F","F","F",null,null,"F","F","F","F","F",null,null,"F","F","F","F","F",null,null,"F","F","F","F","F",null,null,"F","F",22,0,0,0,0]
["P007","Laura Durand","Team 3",null,"S","S","S","S","S",null,null,"S","S","S","S","S",null,null,"S","S","S","S","S",null,null,"S","S","S","S","S",null,null,"S","S",0,22,0,0,0]
["P008","Stéphane Leroy","Team 3",null,"S","S","S","S","S",null,null,"S","S","S","S","S",null,null,"S","S","S","S","S",null,null,"S","S","S","S","S",null,null,"S","S",0,22,0,0,0]
["P009","Nina Moreau","Team 3",null,"S","S","S","S","S",null,null,"S","S","S","S","S",null,null,"S","S","S","S","S",null,null,"S","S","S","S","S",null,null,"S","S",0,22,0,0,0]
[null,null,null,null,null,null,null,null,null,null,null,null,null,null,null,null,null,null,null,null,null,null,null,null,null,null,null,null,null,null,null,null,null,null,"","","","",""]
[null,null,null,null,null,null,null,null,null,null,null,null,null,null,null,null,null,null,null,null,null,null,null,null,null,null,null,null,null,null,null,null,null,null,"","","","",""]
[null,null,null,null,null,null,null,null,null,null,null,null,null,null,null,null,null,null,null,null,null,null,null,null,null,null,null,null,null,null,null,null,null,null,"","","","",""]
[null,null,null,null,null,null,null,null,null,null,null,null,null,null,null,null,null,null,null,null,null,null,null,null,null,null,null,null,null,null,null,null,null,null,"","","","",""]
[null,null,null,null,null,null,null,null,null,null,null,null,null,null,null,null,null,null,null,null,null,null,null,null,null,null,null,null,null,null,null,null,null,null,"","","","",""]
[null,null,null,null,null,null,null,null,null,null,null,null,null,null,null,null,null,null,null,null,null,null,null,null,null,null,null,null,null,null,null,null,null,null,"","","","",""]
[null,null,null,null,null,null,null,null,null,null,null,null,null,null,null,null,null,null,null,null,null,null,null,null,null,null,null,null,null,null,null,null,null,null,"","","","",""]
[null,null,null,null,null,null,null,null,null,null,null,null,null,null,null,null,null,null,null,null,null,null,null,null,null,null,null,null,null,null,null,null,null,null,"","","","",""]
[null,null,null,null,null,null,null,null,null,null,null,null,null,null,null,null,null,null,null,null,null,null,null,null,null,null,null,null,null,null,null,null,null,null,"","","","",""]
[null,null,null,null,null,null,null,null,null,null,null,null,null,null,null,null,null,null,null,null,null,null,null,null,null,null,null,null,null,null,null,null,null,null,"","","","",""]
[null,null,null,null,null,null,null,null,null,null,null,null,null,null,null,null,null,null,null,null,null,null,null,null,null,null,null,null,null,null,null,null,null,null,"","","","",""]
[null,null,null,null,null,null,null,null,null,null,null,null,null,null,null,null,null,null,null,null,null,null,null,null,null,null,null,null,null,null,null,null,null,null,"","","","",""]
[null,null,null,null,null,null,null,null,null,null,null,null,null,null,null,null,null,null,null,null,null,null,null,null,null,null,null,null,null,null,null,null,null,null,"","","","",""]
[null,null,null,null,null,null,null,null,null,null,null,null,null,null,null,null,null,null,null,null,null,null,null,null,null,null,null,null,null,null,null,null,null,null,"","","","",""]
[null,null,null,null,null,null,null,null,null,null,null,null,null,null,null,null,null,null,null,null,null,null,null,null,null,null,null,null,null,null,null,null,null,null,"","","","",""]
[null,null,null,null,null,null,null,null,null,null,null,null,null,null,null,null,null,null,null,null,null,null,null,null,null,null,null,null,null,null,null,null,null,null,"","","","",""]
[null,null,null,null,null,null,null,null,null,null,null,null,null,null,null,null,null,null,null,null,null,null,null,null,null,null,null,null,null,null,null,null,null,null,"","","","",""]
[null,null,null,null,null,null,null,null,null,null,null,null,null,null,null,null,null,null,null,null,null,null,null,null,null,null,null,null,null,null,null,null,null,null,"","","","",""]
[null,null,null,null,null,null,null,null,null,null,null,null,null,null,null,null,null,null,null,null,null,null,null,null,null,null,null,null,null,null,null,null,null,null,"","","","",""]
[null,null,null,null,null,null,null,null,null,null,null,null,null,null,null,null,null,null,null,null,null,null,null,null,null,null,null,null,null,null,null,null,null,null,"","","","",""]
[null,null,null,null,null,null,null,null,null,null,null,null,null,null,null,null,null,null,null,null,null,null,null,null,null,null,null,null,null,null,null,null,null,null,"","","","",""]
[null,null,null,null,null,null,null,null,null,null,null,null,null,null,null,null,null,null,null,null,null,null,null,null,null,null,null,null,null,null,null,null,null,null,"","","","",""]
[null,null,null,null,null,null,null,null,null,null,null,null,null,null,null,null,null,null,null,null,null,null,null,null,null,null,null,null,null,null,null,null,null,null,"","","","",""]
[null,null,null,null,null,null,null,null,null,null,null,null,null,null,null,null,null,null,null,null,null,null,null,null,null,null,null,null,null,null,null,null,null,null,"","","","",""]
[null,null,null,null,null,null,null,null,null,null,null,null,null,null,null,null,null,null,null,null,null,null,null,null,null,null,null,null,null,null,null,null,null,null,"","","","",""]
[null,null,null,null,null,null,null,null,null,null,null,null,null,null,null,null,null,null,null,null,null,null,null,null,null,null,null,null,null,null,null,null,null,null,"","","","",""]
[null,null,null,null,null,null,null,null,null,null,null,null,null,null,null,null,null,null,null,null,null,null,null,null,null,null,null,null,null,null,null,null,null,null,"","","","",""]
[null,null,null,null,null,null,null,null,null,null,null,null,null,null,null,null,null,null,null,null,null,null,null,null,null,null,null,null,null,null,null,null,null,null,"","","","",""]
[null,null,null,null,null,null,null,null,null,null,null,null,null,null,null,null,null,null,null,null,null,null,null,null,null,null,null,null,null,null,null,null,null,null,"","","","",""]
[null,null,null,null,null,null,null,null,null,null,null,null,null,null,null,null,null,null,null,null,null,null,null,null,null,null,null,null,null,null,null,null,null,null,"","","","",""]
[null,null,null,null,null,null,null,null,null,null,null,null,null,null,null,null,null,null,null,null,null,null,null,null,null,null,null,null,null,null,null,null,null,null,"","","","",""]
[]
["Avril 2026"]
[null,null,null,"Me","Je","Ve","Sa","Di","Lu","Ma","Me","Je","Ve","Sa","Di","Lu","Ma","Me","Je","Ve","Sa","Di","Lu","Ma","Me","Je","Ve","Sa","Di","Lu","Ma","Me","Je"]
[null,null,null,1,2,3,4,5,6,7,8,9,10,11,12,13,14,15,16,17,18,19,20,21,22,23,24,25,26,27,28,29,30]
["ID du personnel","Nom","Équipe","01 Me","02 Je","03 Ve","04 Sa","05 Di","06 Lu","07 Ma","08 Me","09 Je","10 Ve","11 Sa","12 Di","13 Lu","14 Ma","15 Me","16 Je","17 Ve","18 Sa","19 Di","20 Lu","21 Ma","22 Me","23 Je","24 Ve","25 Sa","26 Di","27 Lu","28 Ma","29 Me","30 Je","31 -","F total","S total","N total","U total","K total"]
["P001","Jean Martin","Team 1","F","F","F",null,null,"F","F","F","F","F",null,null,"F","F","F","F","F",null,null,"F","F","F","F","F",null,null,"F","F","F","F",null,{"$f":"IF(A143=\"\",\"\",COUNTIF(D143:AH143,\"F\"))","v":22},{"$f":"IF(A143=\"\",\"\",COUNTIF(D143:AH143,\"S\"))","v":0},{"$f":"IF(A143=\"\",\"\",COUNTIF(D143:AH143,\"N\"))","v":0},{"$f":"IF(A143=\"\",\"\",COUNTIF(D143:AH143,\"U\"))","v":0},{"$f":"IF(A143=\"\",\"\",COUNTIF(D143:AH143,\"K\"))","v":0}]
["P002","Anne Bernard","Team 1","F","F","F",null,null,"F","F","F","F","F",null,null,"F","F","F","F","F",null,null,"F","F","F","F","F",null,null,"F","F","F","F",null,22,0,0,0,0]
["P003","Michel Dubois","Team 1","F","F","F",null,null,"F","F","F","F","F",null,null,"F","F","F","F","F",null,null,"F","F","F","F","F",null,null,"F","F","F","F",null,22,0,0,0,0]
["P004","Patricia Robert","Team 2","S","S","S",null,null,"S","S","S","S","S",null,null,"S","S","S","S","S",null,null,"S","S","S","S","S",null,null,"S","S","S","S",null,0,22,0,0,0]
["P005","Thomas Richard","Team 2","S","S","S",null,null,"S","S","S","S","S",null,null,"S","S","S","S","S",null,null,"S","S","S","S","S",null,null,"S","S","S","S",null,0,22,0,0,0]
["P006","Julie Petit","Team 2","S","S","S",null,null,"S","S","S","S","S",null,null,"S","S","S","S","S",null,null,"S","S","S","S","S",null,null,"S","S","S","S",null,0,22,0,0,0]
["P007","Laura Durand","Team 3","N","N","N",null,null,"N","N","N","N","N",null,null,"N","N","N","N","N",null,null,"N","N","N","N","N",null,null,"N","N","N","N",null,0,0,22,0,0]
["P008","Stéphane Leroy","Team 3","N","N","N",null,null,"N","N","N","N","N",null,null,"N","N","N","N","N",null,null,"N","N","N","N","N",null,null,"N","N","N","N",null,0,0,22,0,0]
["P009","Nina Moreau","Team 3","N","N","N",null,null,"N","N","N","N","N",null,null,"N","N","N","N","N",null,null,"N","N","N","N","N",null,null,"N","N","N","N",null,0,0,22,0,0]
[null,null,null,null,null,null,null,null,null,null,null,null,null,null,null,null,null,null,null,null,null,null,null,null,null,null,null,null,null,null,null,null,null,null,"","","","",""]
[null,null,null,null,null,null,null,null,null,null,null,null,null,null,null,null,null,null,null,null,null,null,null,null,null,null,null,null,null,null,null,null,null,null,"","","","",""]
[null,null,null,null,null,null,null,null,null,null,null,null,null,null,null,null,null,null,null,null,null,null,null,null,null,null,null,null,null,null,null,null,null,null,"","","","",""]
[null,null,null,null,null,null,null,null,null,null,null,null,null,null,null,null,null,null,null,null,null,null,null,null,null,null,null,null,null,null,null,null,null,null,"","","","",""]
[null,null,null,null,null,null,null,null,null,null,null,null,null,null,null,null,null,null,null,null,null,null,null,null,null,null,null,null,null,null,null,null,null,null,"","","","",""]
[null,null,null,null,null,null,null,null,null,null,null,null,null,null,null,null,null,null,null,null,null,null,null,null,null,null,null,null,null,null,null,null,null,null,"","","","",""]
[null,null,null,null,null,null,null,null,null,null,null,null,null,null,null,null,null,null,null,null,null,null,null,null,null,null,null,null,null,null,null,null,null,null,"","","","",""]
[null,null,null,null,null,null,null,null,null,null,null,null,null,null,null,null,null,null,null,null,null,null,null,null,null,null,null,null,null,null,null,null,null,null,"","","","",""]
[null,null,null,null,null,null,null,null,null,null,null,null,null,null,null,null,null,null,null,null,null,null,null,null,null,null,null,null,null,null,null,null,null,null,"","","","",""]
[null,null,null,null,null,null,null,null,null,null,null,null,null,null,null,null,null,null,null,null,null,null,null,null,null,null,null,null,null,null,null,null,null,null,"","","","",""]
[null,null,null,null,null,null,null,null,null,null,null,null,null,null,null,null,null,null,null,null,null,null,null,null,null,null,null,null,null,null,null,null,null,null,"","","","",""]
[null,null,null,null,null,null,null,null,null,null,null,null,null,null,null,null,null,null,null,null,null,null,null,null,null,null,null,null,null,null,null,null,null,null,"","","","",""]
[null,null,null,null,null,null,null,null,null,null,null,null,null,null,null,null,null,null,null,null,null,null,null,null,null,null,null,null,null,null,null,null,null,null,"","","","",""]
[null,null,null,null,null,null,null,null,null,null,null,null,null,null,null,null,null,null,null,null,null,null,null,null,null,null,null,null,null,null,null,null,null,null,"","","","",""]
[null,null,null,null,null,null,null,null,null,null,null,null,null,null,null,null,null,null,null,null,null,null,null,null,null,null,null,null,null,null,null,null,null,null,"","","","",""]
[null,null,null,null,null,null,null,null,null,null,null,null,null,null,null,null,null,null,null,null,null,null,null,null,null,null,null,null,null,null,null,null,null,null,"","","","",""]
[null,null,null,null,null,null,null,null,null,null,null,null,null,null,null,null,null,null,null,null,null,null,null,null,null,null,null,null,null,null,null,null,null,null,"","","","",""]
[null,null,null,null,null,null,null,null,null,null,null,null,null,null,null,null,null,null,null,null,null,null,null,null,null,null,null,null,null,null,null,null,null,null,"","","","",""]
[null,null,null,null,null,null,null,null,null,null,null,null,null,null,null,null,null,null,null,null,null,null,null,null,null,null,null,null,null,null,null,null,null,null,"","","","",""]
[null,null,null,null,null,null,null,null,null,null,null,null,null,null,null,null,null,null,null,null,null,null,null,null,null,null,null,null,null,null,null,null,null,null,"","","","",""]
[null,null,null,null,null,null,null,null,null,null,null,null,null,null,null,null,null,null,null,null,null,null,null,null,null,null,null,null,null,null,null,null,null,null,"","","","",""]
[null,null,null,null,null,null,null,null,null,null,null,null,null,null,null,null,null,null,null,null,null,null,null,null,null,null,null,null,null,null,null,null,null,null,"","","","",""]
[null,null,null,null,null,null,null,null,null,null,null,null,null,null,null,null,null,null,null,null,null,null,null,null,null,null,null,null,null,null,null,null,null,null,"","","","",""]
[null,null,null,null,null,null,null,null,null,null,null,null,null,null,null,null,null,null,null,null,null,null,null,null,null,null,null,null,null,null,null,null,null,null,"","","","",""]
[null,null,null,null,null,null,null,null,null,null,null,null,null,null,null,null,null,null,null,null,null,null,null,null,null,null,null,null,null,null,null,null,null,null,"","","","",""]
[null,null,null,null,null,null,null,null,null,null,null,null,null,null,null,null,null,null,null,null,null,null,null,null,null,null,null,null,null,null,null,null,null,null,"","","","",""]
[null,null,null,null,null,null,null,null,null,null,null,null,null,null,null,null,null,null,null,null,null,null,null,null,null,null,null,null,null,null,null,null,null,null,"","","","",""]
[null,null,null,null,null,null,null,null,null,null,null,null,null,null,null,null,null,null,null,null,null,null,null,null,null,null,null,null,null,null,null,null,null,null,"","","","",""]
[null,null,null,null,null,null,null,null,null,null,null,null,null,null,null,null,null,null,null,null,null,null,null,null,null,null,null,null,null,null,null,null,null,null,"","","","",""]
[null,null,null,null,null,null,null,null,null,null,null,null,null,null,null,null,null,null,null,null,null,null,null,null,null,null,null,null,null,null,null,null,null,null,"","","","",""]
[null,null,null,null,null,null,null,null,null,null,null,null,null,null,null,null,null,null,null,null,null,null,null,null,null,null,null,null,null,null,null,null,null,null,"","","","",""]
[]
["Mai 2026"]
[null,null,null,"Ve","Sa","Di","Lu","Ma","Me","Je","Ve","Sa","Di","Lu","Ma","Me","Je","Ve","Sa","Di","Lu","Ma","Me","Je","Ve","Sa","Di","Lu","Ma","Me","Je","Ve","Sa","Di"]
[null,null,null,1,2,3,4,5,6,7,8,9,10,11,12,13,14,15,16,17,18,19,20,21,22,23,24,25,26,27,28,29,30,31]
["ID du personnel","Nom","Équipe","01 Ve","02 Sa","03 Di","04 Lu","05 Ma","06 Me","07 Je","08 Ve","09 Sa","10 Di","11 Lu","12 Ma","13 Me","14 Je","15 Ve","16 Sa","17 Di","18 Lu","19 Ma","20 Me","21 Je","22 Ve","23 Sa","24 Di","25 Lu","26 Ma","27 Me","28 Je","29 Ve","30 Sa","31 Di","F total","S total","N total","U total","K total"]
["P001","Jean Martin","Team 1","S",null,null,"S","S","S","S","S",null,null,"S","S","S","S","S",null,null,"S","S","S","S","S",null,null,"S","S","S","S","S",null,null,{"$f":"IF(A188=\"\",\"\",COUNTIF(D188:AH188,\"F\"))","v":0},{"$f":"IF(A188=\"\",\"\",COUNTIF(D188:AH188,\"S\"))","v":21},{"$f":"IF(A188=\"\",\"\",COUNTIF(D188:AH188,\"N\"))","v":0},{"$f":"IF(A188=\"\",\"\",COUNTIF(D188:AH188,\"U\"))","v":0},{"$f":"IF(A188=\"\",\"\",COUNTIF(D188:AH188,\"K\"))","v":0}]
["P002","Anne Bernard","Team 1","S",null,null,"S","S","S","S","S",null,null,"S","S","S","S","S",null,null,"S","S","S","S","S",null,null,"S","S","S","S","S",null,null,0,21,0,0,0]
["P003","Michel Dubois","Team 1","S",null,null,"S","S","S","S","S",null,null,"S","S","S","S","S",null,null,"S","S","S","S","S",null,null,"S","S","S","S","S",null,null,0,21,0,0,0]
["P004","Patricia Robert","Team 2","N",null,null,"N","N","N","N","N",null,null,"N","N","N","N","N",null,null,"N","N","N","N","N",null,null,"N","N","N","N","N",null,null,0,0,21,0,0]
["P005","Thomas Richard","Team 2","N",null,null,"N","N","N","N","N",null,null,"N","N","N","N","N",null,null,"N","N","N","N","N",null,null,"N","N","N","N","N",null,null,0,0,21,0,0]
["P006","Julie Petit","Team 2","N",null,null,"N","N","N","N","N",null,null,"N","N","N","N","N",null,null,"N","N","N","N","N",null,null,"N","N","N","N","N",null,null,0,0,21,0,0]
["P007","Laura Durand","Team 3","F",null,null,"F","F","F","F","F",null,null,"F","F","F","F","F",null,null,"F","F","F","F","F",null,null,"F","F","F","F","F",null,null,21,0,0,0,0]
["P008","Stéphane Leroy","Team 3","F",null,null,"F","F","F","F","F",null,null,"F","F","F","F","F",null,null,"F","F","F","F","F",null,null,"F","F","F","F","F",null,null,21,0,0,0,0]
["P009","Nina Moreau","Team 3","F",null,null,"F","F","F","F","F",null,null,"F","F","F","F","F",null,null,"F","F","F","F","F",null,null,"F","F","F","F","F",null,null,21,0,0,0,0]
[null,null,null,null,null,null,null,null,null,null,null,null,null,null,null,null,null,null,null,null,null,null,null,null,null,null,null,null,null,null,null,null,null,null,"","","","",""]
[null,null,null,null,null,null,null,null,null,null,null,null,null,null,null,null,null,null,null,null,null,null,null,null,null,null,null,null,null,null,null,null,null,null,"","","","",""]
[null,null,null,null,null,null,null,null,null,null,null,null,null,null,null,null,null,null,null,null,null,null,null,null,null,null,null,null,null,null,null,null,null,null,"","","","",""]
[null,null,null,null,null,null,null,null,null,null,null,null,null,null,null,null,null,null,null,null,null,null,null,null,null,null,null,null,null,null,null,null,null,null,"","","","",""]
[null,null,null,null,null,null,null,null,null,null,null,null,null,null,null,null,null,null,null,null,null,null,null,null,null,null,null,null,null,null,null,null,null,null,"","","","",""]
[null,null,null,null,null,null,null,null,null,null,null,null,null,null,null,null,null,null,null,null,null,null,null,null,null,null,null,null,null,null,null,null,null,null,"","","","",""]
[null,null,null,null,null,null,null,null,null,null,null,null,null,null,null,null,null,null,null,null,null,null,null,null,null,null,null,null,null,null,null,null,null,null,"","","","",""]
[null,null,null,null,null,null,null,null,null,null,null,null,null,null,null,null,null,null,null,null,null,null,null,null,null,null,null,null,null,null,null,null,null,null,"","","","",""]
[null,null,null,null,null,null,null,null,null,null,null,null,null,null,null,null,null,null,null,null,null,null,null,null,null,null,null,null,null,null,null,null,null,null,"","","","",""]
[null,null,null,null,null,null,null,null,null,null,null,null,null,null,null,null,null,null,null,null,null,null,null,null,null,null,null,null,null,null,null,null,null,null,"","","","",""]
[null,null,null,null,null,null,null,null,null,null,null,null,null,null,null,null,null,null,null,null,null,null,null,null,null,null,null,null,null,null,null,null,null,null,"","","","",""]
[null,null,null,null,null,null,null,null,null,null,null,null,null,null,null,null,null,null,null,null,null,null,null,null,null,null,null,null,null,null,null,null,null,null,"","","","",""]
[null,null,null,null,null,null,null,null,null,null,null,null,null,null,null,null,null,null,null,null,null,null,null,null,null,null,null,null,null,null,null,null,null,null,"","","","",""]
[null,null,null,null,null,null,null,null,null,null,null,null,null,null,null,null,null,null,null,null,null,null,null,null,null,null,null,null,null,null,null,null,null,null,"","","","",""]
[null,null,null,null,null,null,null,null,null,null,null,null,null,null,null,null,null,null,null,null,null,null,null,null,null,null,null,null,null,null,null,null,null,null,"","","","",""]
[null,null,null,null,null,null,null,null,null,null,null,null,null,null,null,null,null,null,null,null,null,null,null,null,null,null,null,null,null,null,null,null,null,null,"","","","",""]
[null,null,null,null,null,null,null,null,null,null,null,null,null,null,null,null,null,null,null,null,null,null,null,null,null,null,null,null,null,null,null,null,null,null,"","","","",""]
[null,null,null,null,null,null,null,null,null,null,null,null,null,null,null,null,null,null,null,null,null,null,null,null,null,null,null,null,null,null,null,null,null,null,"","","","",""]
[null,null,null,null,null,null,null,null,null,null,null,null,null,null,null,null,null,null,null,null,null,null,null,null,null,null,null,null,null,null,null,null,null,null,"","","","",""]
[null,null,null,null,null,null,null,null,null,null,null,null,null,null,null,null,null,null,null,null,null,null,null,null,null,null,null,null,null,null,null,null,null,null,"","","","",""]
[null,null,null,null,null,null,null,null,null,null,null,null,null,null,null,null,null,null,null,null,null,null,null,null,null,null,null,null,null,null,null,null,null,null,"","","","",""]
[null,null,null,null,null,null,null,null,null,null,null,null,null,null,null,null,null,null,null,null,null,null,null,null,null,null,null,null,null,null,null,null,null,null,"","","","",""]
[null,null,null,null,null,null,null,null,null,null,null,null,null,null,null,null,null,null,null,null,null,null,null,null,null,null,null,null,null,null,null,null,null,null,"","","","",""]
[null,null,null,null,null,null,null,null,null,null,null,null,null,null,null,null,null,null,null,null,null,null,null,null,null,null,null,null,null,null,null,null,null,null,"","","","",""]
[null,null,null,null,null,null,null,null,null,null,null,null,null,null,null,null,null,null,null,null,null,null,null,null,null,null,null,null,null,null,null,null,null,null,"","","","",""]
[null,null,null,null,null,null,null,null,null,null,null,null,null,null,null,null,null,null,null,null,null,null,null,null,null,null,null,null,null,null,null,null,null,null,"","","","",""]
[null,null,null,null,null,null,null,null,null,null,null,null,null,null,null,null,null,null,null,null,null,null,null,null,null,null,null,null,null,null,null,null,null,null,"","","","",""]
[null,null,null,null,null,null,null,null,null,null,null,null,null,null,null,null,null,null,null,null,null,null,null,null,null,null,null,null,null,null,null,null,null,null,"","","","",""]
[null,null,null,null,null,null,null,null,null,null,null,null,null,null,null,null,null,null,null,null,null,null,null,null,null,null,null,null,null,null,null,null,null,null,"","","","",""]
[null,null,null,null,null,null,null,null,null,null,null,null,null,null,null,null,null,null,null,null,null,null,null,null,null,null,null,null,null,null,null,null,null,null,"","","","",""]
[null,null,null,null,null,null,null,null,null,null,null,null,null,null,null,null,null,null,null,null,null,null,null,null,null,null,null,null,null,null,null,null,null,null,"","","","",""]
[]
["Juin 2026"]
[null,null,null,"Lu","Ma","Me","Je","Ve","Sa","Di","Lu","Ma","Me","Je","Ve","Sa","Di","Lu","Ma","Me","Je","Ve","Sa","Di","Lu","Ma","Me","Je","Ve","Sa","Di","Lu","Ma"]
[null,null,null,1,2,3,4,5,6,7,8,9,10,11,12,13,14,15,16,17,18,19,20,21,22,23,24,25,26,27,28,29,30]
["ID du personnel","Nom","Équipe","01 Lu","02 Ma","03 Me","04 Je","05 Ve","06 Sa","07 Di","08 Lu","09 Ma","10 Me","11 Je","12 Ve","13 Sa","14 Di","15 Lu","16 Ma","17 Me","18 Je","19 Ve","20 Sa","21 Di","22 Lu","23 Ma","24 Me","25 Je","26 Ve","27 Sa","28 Di","29 Lu","30 Ma","31 -","F total","S total","N total","U total","K total"]
["P001","Jean Martin","Team 1","N","N","N","N","N",null,null,"N","N","N","N","N",null,null,"N","N","N","N","N",null,null,"N","N","N","N","N",null,null,"N","N",null,{"$f":"IF(A233=\"\",\"\",COUNTIF(D233:AH233,\"F\"))","v":0},{"$f":"IF(A233=\"\",\"\",COUNTIF(D233:AH233,\"S\"))","v":0},{"$f":"IF(A233=\"\",\"\",COUNTIF(D233:AH233,\"N\"))","v":22},{"$f":"IF(A233=\"\",\"\",COUNTIF(D233:AH233,\"U\"))","v":0},{"$f":"IF(A233=\"\",\"\",COUNTIF(D233:AH233,\"K\"))","v":0}]
["P002","Anne Bernard","Team 1","N","N","N","N","N",null,null,"N","N","N","N","N",null,null,"N","N","N","N","N",null,null,"N","N","N","N","N",null,null,"N","N",null,0,0,22,0,0]
["P003","Michel Dubois","Team 1","N","N","N","N","N",null,null,"N","N","N","N","N",null,null,"N","N","N","N","N",null,null,"N","N","N","N","N",null,null,"N","N",null,0,0,22,0,0]
["P004","Patricia Robert","Team 2","F","F","F","F","F",null,null,"F","F","F","F","F",null,null,"F","F","F","F","F",null,null,"F","F","F","F","F",null,null,"F","F",null,22,0,0,0,0]
["P005","Thomas Richard","Team 2","F","F","F","F","F",null,null,"F","F","F","F","F",null,null,"F","F","F","F","F",null,null,"F","F","F","F","F",null,null,"F","F",null,22,0,0,0,0]
["P006","Julie Petit","Team 2","F","F","F","F","F",null,null,"F","F","F","F","F",null,null,"F","F","F","F","F",null,null,"F","F","F","F","F",null,null,"F","F",null,22,0,0,0,0]
["P007","Laura Durand","Team 3","S","S","S","S","S",null,null,"S","S","S","S","S",null,null,"S","S","S","S","S",null,null,"S","S","S","S","S",null,null,"S","S",null,0,22,0,0,0]
["P008","Stéphane Leroy","Team 3","S","S","S","S","S",null,null,"S","S","S","S","S",null,null,"S","S","S","S","S",null,null,"S","S","S","S","S",null,null,"S","S",null,0,22,0,0,0]
["P009","Nina Moreau","Team 3","S","S","S","S","S",null,null,"S","S","S","S","S",null,null,"S","S","S","S","S",null,null,"S","S","S","S","S",null,null,"S","S",null,0,22,0,0,0]
[null,null,null,null,null,null,null,null,null,null,null,null,null,null,null,null,null,null,null,null,null,null,null,null,null,null,null,null,null,null,null,null,null,null,"","","","",""]
[null,null,null,null,null,null,null,null,null,null,null,null,null,null,null,null,null,null,null,null,null,null,null,null,null,null,null,null,null,null,null,null,null,null,"","","","",""]
[null,null,null,null,null,null,null,null,null,null,null,null,null,null,null,null,null,null,null,null,null,null,null,null,null,null,null,null,null,null,null,null,null,null,"","","","",""]
[null,null,null,null,null,null,null,null,null,null,null,null,null,null,null,null,null,null,null,null,null,null,null,null,null,null,null,null,null,null,null,null,null,null,"","","","",""]
[null,null,null,null,null,null,null,null,null,null,null,null,null,null,null,null,null,null,null,null,null,null,null,null,null,null,null,null,null,null,null,null,null,null,"","","","",""]
[null,null,null,null,null,null,null,null,null,null,null,null,null,null,null,null,null,null,null,null,null,null,null,null,null,null,null,null,null,null,null,null,null,null,"","","","",""]
[null,null,null,null,null,null,null,null,null,null,null,null,null,null,null,null,null,null,null,null,null,null,null,null,null,null,null,null,null,null,null,null,null,null,"","","","",""]
[null,null,null,null,null,null,null,null,null,null,null,null,null,null,null,null,null,null,null,null,null,null,null,null,null,null,null,null,null,null,null,null,null,null,"","","","",""]
[null,null,null,null,null,null,null,null,null,null,null,null,null,null,null,null,null,null,null,null,null,null,null,null,null,null,null,null,null,null,null,null,null,null,"","","","",""]
[null,null,null,null,null,null,null,null,null,null,null,null,null,null,null,null,null,null,null,null,null,null,null,null,null,null,null,null,null,null,null,null,null,null,"","","","",""]
[null,null,null,null,null,null,null,null,null,null,null,null,null,null,null,null,null,null,null,null,null,null,null,null,null,null,null,null,null,null,null,null,null,null,"","","","",""]
[null,null,null,null,null,null,null,null,null,null,null,null,null,null,null,null,null,null,null,null,null,null,null,null,null,null,null,null,null,null,null,null,null,null,"","","","",""]
[null,null,null,null,null,null,null,null,null,null,null,null,null,null,null,null,null,null,null,null,null,null,null,null,null,null,null,null,null,null,null,null,null,null,"","","","",""]
[null,null,null,null,null,null,null,null,null,null,null,null,null,null,null,null,null,null,null,null,null,null,null,null,null,null,null,null,null,null,null,null,null,null,"","","","",""]
[null,null,null,null,null,null,null,null,null,null,null,null,null,null,null,null,null,null,null,null,null,null,null,null,null,null,null,null,null,null,null,null,null,null,"","","","",""]
[null,null,null,null,null,null,null,null,null,null,null,null,null,null,null,null,null,null,null,null,null,null,null,null,null,null,null,null,null,null,null,null,null,null,"","","","",""]
[null,null,null,null,null,null,null,null,null,null,null,null,null,null,null,null,null,null,null,null,null,null,null,null,null,null,null,null,null,null,null,null,null,null,"","","","",""]
[null,null,null,null,null,null,null,null,null,null,null,null,null,null,null,null,null,null,null,null,null,null,null,null,null,null,null,null,null,null,null,null,null,null,"","","","",""]
[null,null,null,null,null,null,null,null,null,null,null,null,null,null,null,null,null,null,null,null,null,null,null,null,null,null,null,null,null,null,null,null,null,null,"","","","",""]
[null,null,null,null,null,null,null,null,null,null,null,null,null,null,null,null,null,null,null,null,null,null,null,null,null,null,null,null,null,null,null,null,null,null,"","","","",""]
[null,null,null,null,null,null,null,null,null,null,null,null,null,null,null,null,null,null,null,null,null,null,null,null,null,null,null,null,null,null,null,null,null,null,"","","","",""]
[null,null,null,null,null,null,null,null,null,null,null,null,null,null,null,null,null,null,null,null,null,null,null,null,null,null,null,null,null,null,null,null,null,null,"","","","",""]
[null,null,null,null,null,null,null,null,null,null,null,null,null,null,null,null,null,null,null,null,null,null,null,null,null,null,null,null,null,null,null,null,null,null,"","","","",""]
[null,null,null,null,null,null,null,null,null,null,null,null,null,null,null,null,null,null,null,null,null,null,null,null,null,null,null,null,null,null,null,null,null,null,"","","","",""]
[null,null,null,null,null,null,null,null,null,null,null,null,null,null,null,null,null,null,null,null,null,null,null,null,null,null,null,null,null,null,null,null,null,null,"","","","",""]
[null,null,null,null,null,null,null,null,null,null,null,null,null,null,null,null,null,null,null,null,null,null,null,null,null,null,null,null,null,null,null,null,null,null,"","","","",""]
[null,null,null,null,null,null,null,null,null,null,null,null,null,null,null,null,null,null,null,null,null,null,null,null,null,null,null,null,null,null,null,null,null,null,"","","","",""]
[null,null,null,null,null,null,null,null,null,null,null,null,null,null,null,null,null,null,null,null,null,null,null,null,null,null,null,null,null,null,null,null,null,null,"","","","",""]
[null,null,null,null,null,null,null,null,null,null,null,null,null,null,null,null,null,null,null,null,null,null,null,null,null,null,null,null,null,null,null,null,null,null,"","","","",""]
[null,null,null,null,null,null,null,null,null,null,null,null,null,null,null,null,null,null,null,null,null,null,null,null,null,null,null,null,null,null,null,null,null,null,"","","","",""]
[null,null,null,null,null,null,null,null,null,null,null,null,null,null,null,null,null,null,null,null,null,null,null,null,null,null,null,null,null,null,null,null,null,null,"","","","",""]
[]
["Juillet 2026"]
[null,null,null,"Me","Je","Ve","Sa","Di","Lu","Ma","Me","Je","Ve","Sa","Di","Lu","Ma","Me","Je","Ve","Sa","Di","Lu","Ma","Me","Je","Ve","Sa","Di","Lu","Ma","Me","Je","Ve"]
[null,null,null,1,2,3,4,5,6,7,8,9,10,11,12,13,14,15,16,17,18,19,20,21,22,23,24,25,26,27,28,29,30,31]
["ID du personnel","Nom","Équipe","01 Me","02 Je","03 Ve","04 Sa","05 Di","06 Lu","07 Ma","08 Me","09 Je","10 Ve","11 Sa","12 Di","13 Lu","14 Ma","15 Me","16 Je","17 Ve","18 Sa","19 Di","20 Lu","21 Ma","22 Me","23 Je","24 Ve","25 Sa","26 Di","27 Lu","28 Ma","29 Me","30 Je","31 Ve","F total","S total","N total","U total","K total"]
["P001","Jean Martin","Team 1","F","F","F",null,null,"F","F","F","F","F",null,null,"F","F","F","F","F",null,null,"F","F","F","F","F",null,null,"F","F","F","F","F",{"$f":"IF(A278=\"\",\"\",COUNTIF(D278:AH278,\"F\"))","v":23},{"$f":"IF(A278=\"\",\"\",COUNTIF(D278:AH278,\"S\"))","v":0},{"$f":"IF(A278=\"\",\"\",COUNTIF(D278:AH278,\"N\"))","v":0},{"$f":"IF(A278=\"\",\"\",COUNTIF(D278:AH278,\"U\"))","v":0},{"$f":"IF(A278=\"\",\"\",COUNTIF(D278:AH278,\"K\"))","v":0}]
["P002","Anne Bernard","Team 1","F","F","F",null,null,"F","F","F","F","F",null,null,"F","F","F","F","F",null,null,"F","F","F","F","F",null,null,"F","F","F","F","F",23,0,0,0,0]
["P003","Michel Dubois","Team 1","F","F","F",null,null,"F","F","F","F","F",null,null,"F","F","F","F","F",null,null,"F","F","F","F","F",null,null,"F","F","F","F","F",23,0,0,0,0]
["P004","Patricia Robert","Team 2","S","S","S",null,null,"S","S","S","S","S",null,null,"S","S","S","S","S",null,null,"S","S","S","S","S",null,null,"S","S","S","S","S",0,23,0,0,0]
["P005","Thomas Richard","Team 2","S","S","S",null,null,"S","S","S","S","S",null,null,"S","S","S","S","S",null,null,"S","S","S","S","S",null,null,"S","S","S","S","S",0,23,0,0,0]
["P006","Julie Petit","Team 2","S","S","S",null,null,"S","S","S","S","S",null,null,"S","S","S","S","S",null,null,"S","S","S","S","S",null,null,"S","S","S","S","S",0,23,0,0,0]
["P007","Laura Durand","Team 3","N","N","N",null,null,"N","N","N","N","N",null,null,"N","N","N","N","N",null,null,"N","N","N","N","N",null,null,"N","N","N","N","N",0,0,23,0,0]
["P008","Stéphane Leroy","Team 3","N","N","N",null,null,"N","N","N","N","N",null,null,"N","N","N","N","N",null,null,"N","N","N","N","N",null,null,"N","N","N","N","N",0,0,23,0,0]
["P009","Nina Moreau","Team 3","N","N","N",null,null,"N","N","N","N","N",null,null,"N","N","N","N","N",null,null,"N","N","N","N","N",null,null,"N","N","N","N","N",0,0,23,0,0]
[null,null,null,null,null,null,null,null,null,null,null,null,null,null,null,null,null,null,null,null,null,null,null,null,null,null,null,null,null,null,null,null,null,null,"","","","",""]
[null,null,null,null,null,null,null,null,null,null,null,null,null,null,null,null,null,null,null,null,null,null,null,null,null,null,null,null,null,null,null,null,null,null,"","","","",""]
[null,null,null,null,null,null,null,null,null,null,null,null,null,null,null,null,null,null,null,null,null,null,null,null,null,null,null,null,null,null,null,null,null,null,"","","","",""]
[null,null,null,null,null,null,null,null,null,null,null,null,null,null,null,null,null,null,null,null,null,null,null,null,null,null,null,null,null,null,null,null,null,null,"","","","",""]
[null,null,null,null,null,null,null,null,null,null,null,null,null,null,null,null,null,null,null,null,null,null,null,null,null,null,null,null,null,null,null,null,null,null,"","","","",""]
[null,null,null,null,null,null,null,null,null,null,null,null,null,null,null,null,null,null,null,null,null,null,null,null,null,null,null,null,null,null,null,null,null,null,"","","","",""]
[null,null,null,null,null,null,null,null,null,null,null,null,null,null,null,null,null,null,null,null,null,null,null,null,null,null,null,null,null,null,null,null,null,null,"","","","",""]
[null,null,null,null,null,null,null,null,null,null,null,null,null,null,null,null,null,null,null,null,null,null,null,null,null,null,null,null,null,null,null,null,null,null,"","","","",""]
[null,null,null,null,null,null,null,null,null,null,null,null,null,null,null,null,null,null,null,null,null,null,null,null,null,null,null,null,null,null,null,null,null,null,"","","","",""]
[null,null,null,null,null,null,null,null,null,null,null,null,null,null,null,null,null,null,null,null,null,null,null,null,null,null,null,null,null,null,null,null,null,null,"","","","",""]
[null,null,null,null,null,null,null,null,null,null,null,null,null,null,null,null,null,null,null,null,null,null,null,null,null,null,null,null,null,null,null,null,null,null,"","","","",""]
[null,null,null,null,null,null,null,null,null,null,null,null,null,null,null,null,null,null,null,null,null,null,null,null,null,null,null,null,null,null,null,null,null,null,"","","","",""]
[null,null,null,null,null,null,null,null,null,null,null,null,null,null,null,null,null,null,null,null,null,null,null,null,null,null,null,null,null,null,null,null,null,null,"","","","",""]
[null,null,null,null,null,null,null,null,null,null,null,null,null,null,null,null,null,null,null,null,null,null,null,null,null,null,null,null,null,null,null,null,null,null,"","","","",""]
[null,null,null,null,null,null,null,null,null,null,null,null,null,null,null,null,null,null,null,null,null,null,null,null,null,null,null,null,null,null,null,null,null,null,"","","","",""]
[null,null,null,null,null,null,null,null,null,null,null,null,null,null,null,null,null,null,null,null,null,null,null,null,null,null,null,null,null,null,null,null,null,null,"","","","",""]
[null,null,null,null,null,null,null,null,null,null,null,null,null,null,null,null,null,null,null,null,null,null,null,null,null,null,null,null,null,null,null,null,null,null,"","","","",""]
[null,null,null,null,null,null,null,null,null,null,null,null,null,null,null,null,null,null,null,null,null,null,null,null,null,null,null,null,null,null,null,null,null,null,"","","","",""]
[null,null,null,null,null,null,null,null,null,null,null,null,null,null,null,null,null,null,null,null,null,null,null,null,null,null,null,null,null,null,null,null,null,null,"","","","",""]
[null,null,null,null,null,null,null,null,null,null,null,null,null,null,null,null,null,null,null,null,null,null,null,null,null,null,null,null,null,null,null,null,null,null,"","","","",""]
[null,null,null,null,null,null,null,null,null,null,null,null,null,null,null,null,null,null,null,null,null,null,null,null,null,null,null,null,null,null,null,null,null,null,"","","","",""]
[null,null,null,null,null,null,null,null,null,null,null,null,null,null,null,null,null,null,null,null,null,null,null,null,null,null,null,null,null,null,null,null,null,null,"","","","",""]
[null,null,null,null,null,null,null,null,null,null,null,null,null,null,null,null,null,null,null,null,null,null,null,null,null,null,null,null,null,null,null,null,null,null,"","","","",""]
[null,null,null,null,null,null,null,null,null,null,null,null,null,null,null,null,null,null,null,null,null,null,null,null,null,null,null,null,null,null,null,null,null,null,"","","","",""]
[null,null,null,null,null,null,null,null,null,null,null,null,null,null,null,null,null,null,null,null,null,null,null,null,null,null,null,null,null,null,null,null,null,null,"","","","",""]
[null,null,null,null,null,null,null,null,null,null,null,null,null,null,null,null,null,null,null,null,null,null,null,null,null,null,null,null,null,null,null,null,null,null,"","","","",""]
[null,null,null,null,null,null,null,null,null,null,null,null,null,null,null,null,null,null,null,null,null,null,null,null,null,null,null,null,null,null,null,null,null,null,"","","","",""]
[null,null,null,null,null,null,null,null,null,null,null,null,null,null,null,null,null,null,null,null,null,null,null,null,null,null,null,null,null,null,null,null,null,null,"","","","",""]
[null,null,null,null,null,null,null,null,null,null,null,null,null,null,null,null,null,null,null,null,null,null,null,null,null,null,null,null,null,null,null,null,null,null,"","","","",""]
[null,null,null,null,null,null,null,null,null,null,null,null,null,null,null,null,null,null,null,null,null,null,null,null,null,null,null,null,null,null,null,null,null,null,"","","","",""]
[null,null,null,null,null,null,null,null,null,null,null,null,null,null,null,null,null,null,null,null,null,null,null,null,null,null,null,null,null,null,null,null,null,null,"","","","",""]
[]
["Août 2026"]
[null,null,null,"Sa","Di","Lu","Ma","Me","Je","Ve","Sa","Di","Lu","Ma","Me","Je","Ve","Sa","Di","Lu","Ma","Me","Je","Ve","Sa","Di","Lu","Ma","Me","Je","Ve","Sa","Di","Lu"]
[null,null,null,1,2,3,4,5,6,7,8,9,10,11,12,13,14,15,16,17,18,19,20,21,22,23,24,25,26,27,28,29,30,31]
["ID du personnel","Nom","Équipe","01 Sa","02 Di","03 Lu","04 Ma","05 Me","06 Je","07 Ve","08 Sa","09 Di","10 Lu","11 Ma","12 Me","13 Je","14 Ve","15 Sa","16 Di","17 Lu","18 Ma","19 Me","20 Je","21 Ve","22 Sa","23 Di","24 Lu","25 Ma","26 Me","27 Je","28 Ve","29 Sa","30 Di","31 Lu","F total","S total","N total","U total","K total"]
["P001","Jean Martin","Team 1",null,null,"S","S","S","S","S",null,null,"S","S","S","S","S",null,null,"S","S","S","S","S",null,null,"S","S","S","S","S",null,null,"S",{"$f":"IF(A323=\"\",\"\",COUNTIF(D323:AH323,\"F\"))","v":0},{"$f":"IF(A323=\"\",\"\",COUNTIF(D323:AH323,\"S\"))","v":21},{"$f":"IF(A323=\"\",\"\",COUNTIF(D323:AH323,\"N\"))","v":0},{"$f":"IF(A323=\"\",\"\",COUNTIF(D323:AH323,\"U\"))","v":0},{"$f":"IF(A323=\"\",\"\",COUNTIF(D323:AH323,\"K\"))","v":0}]
["P002","Anne Bernard","Team 1",null,null,"S","S","S","S","S",null,null,"S","S","S","S","S",null,null,"S","S","S","S","S",null,null,"S","S","S","S","S",null,null,"S",0,21,0,0,0]
["P003","Michel Dubois","Team 1",null,null,"S","S","S","S","S",null,null,"S","S","S","S","S",null,null,"S","S","S","S","S",null,null,"S","S","S","S","S",null,null,"S",0,21,0,0,0]
["P004","Patricia Robert","Team 2",null,null,"N","N","N","N","N",null,null,"N","N","N","N","N",null,null,"N","N","N","N","N",null,null,"N","N","N","N","N",null,null,"N",0,0,21,0,0]
["P005","Thomas Richard","Team 2",null,null,"N","N","N","N","N",null,null,"N","N","N","N","N",null,null,"N","N","N","N","N",null,null,"N","N","N","N","N",null,null,"N",0,0,21,0,0]
["P006","Julie Petit","Team 2",null,null,"N","N","N","N","N",null,null,"N","N","N","N","N",null,null,"N","N","N","N","N",null,null,"N","N","N","N","N",null,null,"N",0,0,21,0,0]
["P007","Laura Durand","Team 3",null,null,"F","F","F","F","F",null,null,"F","F","F","F","F",null,null,"F","F","F","F","F",null,null,"F","F","F","F","F",null,null,"F",21,0,0,0,0]
["P008","Stéphane Leroy","Team 3",null,null,"F","F","F","F","F",null,null,"F","F","F","F","F",null,null,"F","F","F","F","F",null,null,"F","F","F","F","F",null,null,"F",21,0,0,0,0]
["P009","Nina Moreau","Team 3",null,null,"F","F","F","F","F",null,null,"F","F","F","F","F",null,null,"F","F","F","F","F",null,null,"F","F","F","F","F",null,null,"F",21,0,0,0,0]
[null,null,null,null,null,null,null,null,null,null,null,null,null,null,null,null,null,null,null,null,null,null,null,null,null,null,null,null,null,null,null,null,null,null,"","","","",""]
[null,null,null,null,null,null,null,null,null,null,null,null,null,null,null,null,null,null,null,null,null,null,null,null,null,null,null,null,null,null,null,null,null,null,"","","","",""]
[null,null,null,null,null,null,null,null,null,null,null,null,null,null,null,null,null,null,null,null,null,null,null,null,null,null,null,null,null,null,null,null,null,null,"","","","",""]
[null,null,null,null,null,null,null,null,null,null,null,null,null,null,null,null,null,null,null,null,null,null,null,null,null,null,null,null,null,null,null,null,null,null,"","","","",""]
[null,null,null,null,null,null,null,null,null,null,null,null,null,null,null,null,null,null,null,null,null,null,null,null,null,null,null,null,null,null,null,null,null,null,"","","","",""]
[null,null,null,null,null,null,null,null,null,null,null,null,null,null,null,null,null,null,null,null,null,null,null,null,null,null,null,null,null,null,null,null,null,null,"","","","",""]
[null,null,null,null,null,null,null,null,null,null,null,null,null,null,null,null,null,null,null,null,null,null,null,null,null,null,null,null,null,null,null,null,null,null,"","","","",""]
[null,null,null,null,null,null,null,null,null,null,null,null,null,null,null,null,null,null,null,null,null,null,null,null,null,null,null,null,null,null,null,null,null,null,"","","","",""]
[null,null,null,null,null,null,null,null,null,null,null,null,null,null,null,null,null,null,null,null,null,null,null,null,null,null,null,null,null,null,null,null,null,null,"","","","",""]
[null,null,null,null,null,null,null,null,null,null,null,null,null,null,null,null,null,null,null,null,null,null,null,null,null,null,null,null,null,null,null,null,null,null,"","","","",""]
[null,null,null,null,null,null,null,null,null,null,null,null,null,null,null,null,null,null,null,null,null,null,null,null,null,null,null,null,null,null,null,null,null,null,"","","","",""]
[null,null,null,null,null,null,null,null,null,null,null,null,null,null,null,null,null,null,null,null,null,null,null,null,null,null,null,null,null,null,null,null,null,null,"","","","",""]
[null,null,null,null,null,null,null,null,null,null,null,null,null,null,null,null,null,null,null,null,null,null,null,null,null,null,null,null,null,null,null,null,null,null,"","","","",""]
[null,null,null,null,null,null,null,null,null,null,null,null,null,null,null,null,null,null,null,null,null,null,null,null,null,null,null,null,null,null,null,null,null,null,"","","","",""]
[null,null,null,null,null,null,null,null,null,null,null,null,null,null,null,null,null,null,null,null,null,null,null,null,null,null,null,null,null,null,null,null,null,null,"","","","",""]
[null,null,null,null,null,null,null,null,null,null,null,null,null,null,null,null,null,null,null,null,null,null,null,null,null,null,null,null,null,null,null,null,null,null,"","","","",""]
[null,null,null,null,null,null,null,null,null,null,null,null,null,null,null,null,null,null,null,null,null,null,null,null,null,null,null,null,null,null,null,null,null,null,"","","","",""]
[null,null,null,null,null,null,null,null,null,null,null,null,null,null,null,null,null,null,null,null,null,null,null,null,null,null,null,null,null,null,null,null,null,null,"","","","",""]
[null,null,null,null,null,null,null,null,null,null,null,null,null,null,null,null,null,null,null,null,null,null,null,null,null,null,null,null,null,null,null,null,null,null,"","","","",""]
[null,null,null,null,null,null,null,null,null,null,null,null,null,null,null,null,null,null,null,null,null,null,null,null,null,null,null,null,null,null,null,null,null,null,"","","","",""]
[null,null,null,null,null,null,null,null,null,null,null,null,null,null,null,null,null,null,null,null,null,null,null,null,null,null,null,null,null,null,null,null,null,null,"","","","",""]
[null,null,null,null,null,null,null,null,null,null,null,null,null,null,null,null,null,null,null,null,null,null,null,null,null,null,null,null,null,null,null,null,null,null,"","","","",""]
[null,null,null,null,null,null,null,null,null,null,null,null,null,null,null,null,null,null,null,null,null,null,null,null,null,null,null,null,null,null,null,null,null,null,"","","","",""]
[null,null,null,null,null,null,null,null,null,null,null,null,null,null,null,null,null,null,null,null,null,null,null,null,null,null,null,null,null,null,null,null,null,null,"","","","",""]
[null,null,null,null,null,null,null,null,null,null,null,null,null,null,null,null,null,null,null,null,null,null,null,null,null,null,null,null,null,null,null,null,null,null,"","","","",""]
[null,null,null,null,null,null,null,null,null,null,null,null,null,null,null,null,null,null,null,null,null,null,null,null,null,null,null,null,null,null,null,null,null,null,"","","","",""]
[null,null,null,null,null,null,null,null,null,null,null,null,null,null,null,null,null,null,null,null,null,null,null,null,null,null,null,null,null,null,null,null,null,null,"","","","",""]
[null,null,null,null,null,null,null,null,null,null,null,null,null,null,null,null,null,null,null,null,null,null,null,null,null,null,null,null,null,null,null,null,null,null,"","","","",""]
[null,null,null,null,null,null,null,null,null,null,null,null,null,null,null,null,null,null,null,null,null,null,null,null,null,null,null,null,null,null,null,null,null,null,"","","","",""]
[null,null,null,null,null,null,null,null,null,null,null,null,null,null,null,null,null,null,null,null,null,null,null,null,null,null,null,null,null,null,null,null,null,null,"","","","",""]
[null,null,null,null,null,null,null,null,null,null,null,null,null,null,null,null,null,null,null,null,null,null,null,null,null,null,null,null,null,null,null,null,null,null,"","","","",""]
[]
["Septembre 2026"]
[null,null,null,"Ma","Me","Je","Ve","Sa","Di","Lu","Ma","Me","Je","Ve","Sa","Di","Lu","Ma","Me","Je","Ve","Sa","Di","Lu","Ma","Me","Je","Ve","Sa","Di","Lu","Ma","Me"]
[null,null,null,1,2,3,4,5,6,7,8,9,10,11,12,13,14,15,16,17,18,19,20,21,22,23,24,25,26,27,28,29,30]
["ID du personnel","Nom","Équipe","01 Ma","02 Me","03 Je","04 Ve","05 Sa","06 Di","07 Lu","08 Ma","09 Me","10 Je","11 Ve","12 Sa","13 Di","14 Lu","15 Ma","16 Me","17 Je","18 Ve","19 Sa","20 Di","21 Lu","22 Ma","23 Me","24 Je","25 Ve","26 Sa","27 Di","28 Lu","29 Ma","30 Me","31 -","F total","S total","N total","U total","K total"]
["P001","Jean Martin","Team 1","N","N","N","N",null,null,"N","N","N","N","N",null,null,"N","N","N","N","N",null,null,"N","N","N","N","N",null,null,"N","N","N",null,{"$f":"IF(A368=\"\",\"\",COUNTIF(D368:AH368,\"F\"))","v":0},{"$f":"IF(A368=\"\",\"\",COUNTIF(D368:AH368,\"S\"))","v":0},{"$f":"IF(A368=\"\",\"\",COUNTIF(D368:AH368,\"N\"))","v":22},{"$f":"IF(A368=\"\",\"\",COUNTIF(D368:AH368,\"U\"))","v":0},{"$f":"IF(A368=\"\",\"\",COUNTIF(D368:AH368,\"K\"))","v":0}]
["P002","Anne Bernard","Team 1","N","N","N","N",null,null,"N","N","N","N","N",null,null,"N","N","N","N","N",null,null,"N","N","N","N","N",null,null,"N","N","N",null,0,0,22,0,0]
["P003","Michel Dubois","Team 1","N","N","N","N",null,null,"N","N","N","N","N",null,null,"N","N","N","N","N",null,null,"N","N","N","N","N",null,null,"N","N","N",null,0,0,22,0,0]
["P004","Patricia Robert","Team 2","F","F","F","F",null,null,"F","F","F","F","F",null,null,"F","F","F","F","F",null,null,"F","F","F","F","F",null,null,"F","F","F",null,22,0,0,0,0]
["P005","Thomas Richard","Team 2","F","F","F","F",null,null,"F","F","F","F","F",null,null,"F","F","F","F","F",null,null,"F","F","F","F","F",null,null,"F","F","F",null,22,0,0,0,0]
["P006","Julie Petit","Team 2","F","F","F","F",null,null,"F","F","F","F","F",null,null,"F","F","F","F","F",null,null,"F","F","F","F","F",null,null,"F","F","F",null,22,0,0,0,0]
["P007","Laura Durand","Team 3","S","S","S","S",null,null,"S","S","S","S","S",null,null,"S","S","S","S","S",null,null,"S","S","S","S","S",null,null,"S","S","S",null,0,22,0,0,0]
["P008","Stéphane Leroy","Team 3","S","S","S","S",null,null,"S","S","S","S","S",null,null,"S","S","S","S","S",null,null,"S","S","S","S","S",null,null,"S","S","S",null,0,22,0,0,0]
["P009","Nina Moreau","Team 3","S","S","S","S",null,null,"S","S","S","S","S",null,null,"S","S","S","S","S",null,null,"S","S","S","S","S",null,null,"S","S","S",null,0,22,0,0,0]
[null,null,null,null,null,null,null,null,null,null,null,null,null,null,null,null,null,null,null,null,null,null,null,null,null,null,null,null,null,null,null,null,null,null,"","","","",""]
[null,null,null,null,null,null,null,null,null,null,null,null,null,null,null,null,null,null,null,null,null,null,null,null,null,null,null,null,null,null,null,null,null,null,"","","","",""]
[null,null,null,null,null,null,null,null,null,null,null,null,null,null,null,null,null,null,null,null,null,null,null,null,null,null,null,null,null,null,null,null,null,null,"","","","",""]
[null,null,null,null,null,null,null,null,null,null,null,null,null,null,null,null,null,null,null,null,null,null,null,null,null,null,null,null,null,null,null,null,null,null,"","","","",""]
[null,null,null,null,null,null,null,null,null,null,null,null,null,null,null,null,null,null,null,null,null,null,null,null,null,null,null,null,null,null,null,null,null,null,"","","","",""]
[null,null,null,null,null,null,null,null,null,null,null,null,null,null,null,null,null,null,null,null,null,null,null,null,null,null,null,null,null,null,null,null,null,null,"","","","",""]
[null,null,null,null,null,null,null,null,null,null,null,null,null,null,null,null,null,null,null,null,null,null,null,null,null,null,null,null,null,null,null,null,null,null,"","","","",""]
[null,null,null,null,null,null,null,null,null,null,null,null,null,null,null,null,null,null,null,null,null,null,null,null,null,null,null,null,null,null,null,null,null,null,"","","","",""]
[null,null,null,null,null,null,null,null,null,null,null,null,null,null,null,null,null,null,null,null,null,null,null,null,null,null,null,null,null,null,null,null,null,null,"","","","",""]
[null,null,null,null,null,null,null,null,null,null,null,null,null,null,null,null,null,null,null,null,null,null,null,null,null,null,null,null,null,null,null,null,null,null,"","","","",""]
[null,null,null,null,null,null,null,null,null,null,null,null,null,null,null,null,null,null,null,null,null,null,null,null,null,null,null,null,null,null,null,null,null,null,"","","","",""]
[null,null,null,null,null,null,null,null,null,null,null,null,null,null,null,null,null,null,null,null,null,null,null,null,null,null,null,null,null,null,null,null,null,null,"","","","",""]
[null,null,null,null,null,null,null,null,null,null,null,null,null,null,null,null,null,null,null,null,null,null,null,null,null,null,null,null,null,null,null,null,null,null,"","","","",""]
[null,null,null,null,null,null,null,null,null,null,null,null,null,null,null,null,null,null,null,null,null,null,null,null,null,null,null,null,null,null,null,null,null,null,"","","","",""]
[null,null,null,null,null,null,null,null,null,null,null,null,null,null,null,null,null,null,null,null,null,null,null,null,null,null,null,null,null,null,null,null,null,null,"","","","",""]
[null,null,null,null,null,null,null,null,null,null,null,null,null,null,null,null,null,null,null,null,null,null,null,null,null,null,null,null,null,null,null,null,null,null,"","","","",""]
[null,null,null,null,null,null,null,null,null,null,null,null,null,null,null,null,null,null,null,null,null,null,null,null,null,null,null,null,null,null,null,null,null,null,"","","","",""]
[null,null,null,null,null,null,null,null,null,null,null,null,null,null,null,null,null,null,null,null,null,null,null,null,null,null,null,null,null,null,null,null,null,null,"","","","",""]
[null,null,null,null,null,null,null,null,null,null,null,null,null,null,null,null,null,null,null,null,null,null,null,null,null,null,null,null,null,null,null,null,null,null,"","","","",""]
[null,null,null,null,null,null,null,null,null,null,null,null,null,null,null,null,null,null,null,null,null,null,null,null,null,null,null,null,null,null,null,null,null,null,"","","","",""]
[null,null,null,null,null,null,null,null,null,null,null,null,null,null,null,null,null,null,null,null,null,null,null,null,null,null,null,null,null,null,null,null,null,null,"","","","",""]
[null,null,null,null,null,null,null,null,null,null,null,null,null,null,null,null,null,null,null,null,null,null,null,null,null,null,null,null,null,null,null,null,null,null,"","","","",""]
[null,null,null,null,null,null,null,null,null,null,null,null,null,null,null,null,null,null,null,null,null,null,null,null,null,null,null,null,null,null,null,null,null,null,"","","","",""]
[null,null,null,null,null,null,null,null,null,null,null,null,null,null,null,null,null,null,null,null,null,null,null,null,null,null,null,null,null,null,null,null,null,null,"","","","",""]
[null,null,null,null,null,null,null,null,null,null,null,null,null,null,null,null,null,null,null,null,null,null,null,null,null,null,null,null,null,null,null,null,null,null,"","","","",""]
[null,null,null,null,null,null,null,null,null,null,null,null,null,null,null,null,null,null,null,null,null,null,null,null,null,null,null,null,null,null,null,null,null,null,"","","","",""]
[null,null,null,null,null,null,null,null,null,null,null,null,null,null,null,null,null,null,null,null,null,null,null,null,null,null,null,null,null,null,null,null,null,null,"","","","",""]
[null,null,null,null,null,null,null,null,null,null,null,null,null,null,null,null,null,null,null,null,null,null,null,null,null,null,null,null,null,null,null,null,null,null,"","","","",""]
[null,null,null,null,null,null,null,null,null,null,null,null,null,null,null,null,null,null,null,null,null,null,null,null,null,null,null,null,null,null,null,null,null,null,"","","","",""]
[null,null,null,null,null,null,null,null,null,null,null,null,null,null,null,null,null,null,null,null,null,null,null,null,null,null,null,null,null,null,null,null,null,null,"","","","",""]
[null,null,null,null,null,null,null,null,null,null,null,null,null,null,null,null,null,null,null,null,null,null,null,null,null,null,null,null,null,null,null,null,null,null,"","","","",""]
[]
["Octobre 2026"]
[null,null,null,"Je","Ve","Sa","Di","Lu","Ma","Me","Je","Ve","Sa","Di","Lu","Ma","Me","Je","Ve","Sa","Di","Lu","Ma","Me","Je","Ve","Sa","Di","Lu","Ma","Me","Je","Ve","Sa"]
[null,null,null,1,2,3,4,5,6,7,8,9,10,11,12,13,14,15,16,17,18,19,20,21,22,23,24,25,26,27,28,29,30,31]
["ID du personnel","Nom","Équipe","01 Je","02 Ve","03 Sa","04 Di","05 Lu","06 Ma","07 Me","08 Je","09 Ve","10 Sa","11 Di","12 Lu","13 Ma","14 Me","15 Je","16 Ve","17 Sa","18 Di","19 Lu","20 Ma","21 Me","22 Je","23 Ve","24 Sa","25 Di","26 Lu","27 Ma","28 Me","29 Je","30 Ve","31 Sa","F total","S total","N total","U total","K total"]
["P001","Jean Martin","Team 1","F","F",null,null,"F","F","F","F","F",null,null,"F","F","F","F","F",null,null,"F","F","F","F","F",null,null,"F","F","F","F","F",null,{"$f":"IF(A413=\"\",\"\",COUNTIF(D413:AH413,\"F\"))","v":22},{"$f":"IF(A413=\"\",\"\",COUNTIF(D413:AH413,\"S\"))","v":0},{"$f":"IF(A413=\"\",\"\",COUNTIF(D413:AH413,\"N\"))","v":0},{"$f":"IF(A413=\"\",\"\",COUNTIF(D413:AH413,\"U\"))","v":0},{"$f":"IF(A413=\"\",\"\",COUNTIF(D413:AH413,\"K\"))","v":0}]
["P002","Anne Bernard","Team 1","F","F",null,null,"F","F","F","F","F",null,null,"F","F","F","F","F",null,null,"F","F","F","F","F",null,null,"F","F","F","F","F",null,22,0,0,0,0]
["P003","Michel Dubois","Team 1","F","F",null,null,"F","F","F","F","F",null,null,"F","F","F","F","F",null,null,"F","F","F","F","F",null,null,"F","F","F","F","F",null,22,0,0,0,0]
["P004","Patricia Robert","Team 2","S","S",null,null,"S","S","S","S","S",null,null,"S","S","S","S","S",null,null,"S","S","S","S","S",null,null,"S","S","S","S","S",null,0,22,0,0,0]
["P005","Thomas Richard","Team 2","S","S",null,null,"S","S","S","S","S",null,null,"S","S","S","S","S",null,null,"S","S","S","S","S",null,null,"S","S","S","S","S",null,0,22,0,0,0]
["P006","Julie Petit","Team 2","S","S",null,null,"S","S","S","S","S",null,null,"S","S","S","S","S",null,null,"S","S","S","S","S",null,null,"S","S","S","S","S",null,0,22,0,0,0]
["P007","Laura Durand","Team 3","N","N",null,null,"N","N","N","N","N",null,null,"N","N","N","N","N",null,null,"N","N","N","N","N",null,null,"N","N","N","N","N",null,0,0,22,0,0]
["P008","Stéphane Leroy","Team 3","N","N",null,null,"N","N","N","N","N",null,null,"N","N","N","N","N",null,null,"N","N","N","N","N",null,null,"N","N","N","N","N",null,0,0,22,0,0]
["P009","Nina Moreau","Team 3","N","N",null,null,"N","N","N","N","N",null,null,"N","N","N","N","N",null,null,"N","N","N","N","N",null,null,"N","N","N","N","N",null,0,0,22,0,0]
[null,null,null,null,null,null,null,null,null,null,null,null,null,null,null,null,null,null,null,null,null,null,null,null,null,null,null,null,null,null,null,null,null,null,"","","","",""]
[null,null,null,null,null,null,null,null,null,null,null,null,null,null,null,null,null,null,null,null,null,null,null,null,null,null,null,null,null,null,null,null,null,null,"","","","",""]
[null,null,null,null,null,null,null,null,null,null,null,null,null,null,null,null,null,null,null,null,null,null,null,null,null,null,null,null,null,null,null,null,null,null,"","","","",""]
[null,null,null,null,null,null,null,null,null,null,null,null,null,null,null,null,null,null,null,null,null,null,null,null,null,null,null,null,null,null,null,null,null,null,"","","","",""]
[null,null,null,null,null,null,null,null,null,null,null,null,null,null,null,null,null,null,null,null,null,null,null,null,null,null,null,null,null,null,null,null,null,null,"","","","",""]
[null,null,null,null,null,null,null,null,null,null,null,null,null,null,null,null,null,null,null,null,null,null,null,null,null,null,null,null,null,null,null,null,null,null,"","","","",""]
[null,null,null,null,null,null,null,null,null,null,null,null,null,null,null,null,null,null,null,null,null,null,null,null,null,null,null,null,null,null,null,null,null,null,"","","","",""]
[null,null,null,null,null,null,null,null,null,null,null,null,null,null,null,null,null,null,null,null,null,null,null,null,null,null,null,null,null,null,null,null,null,null,"","","","",""]
[null,null,null,null,null,null,null,null,null,null,null,null,null,null,null,null,null,null,null,null,null,null,null,null,null,null,null,null,null,null,null,null,null,null,"","","","",""]
[null,null,null,null,null,null,null,null,null,null,null,null,null,null,null,null,null,null,null,null,null,null,null,null,null,null,null,null,null,null,null,null,null,null,"","","","",""]
[null,null,null,null,null,null,null,null,null,null,null,null,null,null,null,null,null,null,null,null,null,null,null,null,null,null,null,null,null,null,null,null,null,null,"","","","",""]
[null,null,null,null,null,null,null,null,null,null,null,null,null,null,null,null,null,null,null,null,null,null,null,null,null,null,null,null,null,null,null,null,null,null,"","","","",""]
[null,null,null,null,null,null,null,null,null,null,null,null,null,null,null,null,null,null,null,null,null,null,null,null,null,null,null,null,null,null,null,null,null,null,"","","","",""]
[null,null,null,null,null,null,null,null,null,null,null,null,null,null,null,null,null,null,null,null,null,null,null,null,null,null,null,null,null,null,null,null,null,null,"","","","",""]
[null,null,null,null,null,null,null,null,null,null,null,null,null,null,null,null,null,null,null,null,null,null,null,null,null,null,null,null,null,null,null,null,null,null,"","","","",""]
[null,null,null,null,null,null,null,null,null,null,null,null,null,null,null,null,null,null,null,null,null,null,null,null,null,null,null,null,null,null,null,null,null,null,"","","","",""]
[null,null,null,null,null,null,null,null,null,null,null,null,null,null,null,null,null,null,null,null,null,null,null,null,null,null,null,null,null,null,null,null,null,null,"","","","",""]
[null,null,null,null,null,null,null,null,null,null,null,null,null,null,null,null,null,null,null,null,null,null,null,null,null,null,null,null,null,null,null,null,null,null,"","","","",""]
[null,null,null,null,null,null,null,null,null,null,null,null,null,null,null,null,null,null,null,null,null,null,null,null,null,null,null,null,null,null,null,null,null,null,"","","","",""]
[null,null,null,null,null,null,null,null,null,null,null,null,null,null,null,null,null,null,null,null,null,null,null,null,null,null,null,null,null,null,null,null,null,null,"","","","",""]
[null,null,null,null,null,null,null,null,null,null,null,null,null,null,null,null,null,null,null,null,null,null,null,null,null,null,null,null,null,null,null,null,null,null,"","","","",""]
[null,null,null,null,null,null,null,null,null,null,null,null,null,null,null,null,null,null,null,null,null,null,null,null,null,null,null,null,null,null,null,null,null,null,"","","","",""]
[null,null,null,null,null,null,null,null,null,null,null,null,null,null,null,null,null,null,null,null,null,null,null,null,null,null,null,null,null,null,null,null,null,null,"","","","",""]
[null,null,null,null,null,null,null,null,null,null,null,null,null,null,null,null,null,null,null,null,null,null,null,null,null,null,null,null,null,null,null,null,null,null,"","","","",""]
[null,null,null,null,null,null,null,null,null,null,null,null,null,null,null,null,null,null,null,null,null,null,null,null,null,null,null,null,null,null,null,null,null,null,"","","","",""]
[null,null,null,null,null,null,null,null,null,null,null,null,null,null,null,null,null,null,null,null,null,null,null,null,null,null,null,null,null,null,null,null,null,null,"","","","",""]
[null,null,null,null,null,null,null,null,null,null,null,null,null,null,null,null,null,null,null,null,null,null,null,null,null,null,null,null,null,null,null,null,null,null,"","","","",""]
[null,null,null,null,null,null,null,null,null,null,null,null,null,null,null,null,null,null,null,null,null,null,null,null,null,null,null,null,null,null,null,null,null,null,"","","","",""]
[null,null,null,null,null,null,null,null,null,null,null,null,null,null,null,null,null,null,null,null,null,null,null,null,null,null,null,null,null,null,null,null,null,null,"","","","",""]
[null,null,null,null,null,null,null,null,null,null,null,null,null,null,null,null,null,null,null,null,null,null,null,null,null,null,null,null,null,null,null,null,null,null,"","","","",""]
[null,null,null,null,null,null,null,null,null,null,null,null,null,null,null,null,null,null,null,null,null,null,null,null,null,null,null,null,null,null,null,null,null,null,"","","","",""]
[]
["Novembre 2026"]
[null,null,null,"Di","Lu","Ma","Me","Je","Ve","Sa","Di","Lu","Ma","Me","Je","Ve","Sa","Di","Lu","Ma","Me","Je","Ve","Sa","Di","Lu","Ma","Me","Je","Ve","Sa","Di","Lu"]
[null,null,null,1,2,3,4,5,6,7,8,9,10,11,12,13,14,15,16,17,18,19,20,21,22,23,24,25,26,27,28,29,30]
["ID du personnel","Nom","Équipe","01 Di","02 Lu","03 Ma","04 Me","05 Je","06 Ve","07 Sa","08 Di","09 Lu","10 Ma","11 Me","12 Je","13 Ve","14 Sa","15 Di","16 Lu","17 Ma","18 Me","19 Je","20 Ve","21 Sa","22 Di","23 Lu","24 Ma","25 Me","26 Je","27 Ve","28 Sa","29 Di","30 Lu","31 -","F total","S total","N total","U total","K total"]
["P001","Jean Martin","Team 1",null,"S","S","S","S","S",null,null,"S","S","S","S","S",null,null,"S","S","S","S","S",null,null,"S","S","S","S","S",null,null,"S",null,{"$f":"IF(A458=\"\",\"\",COUNTIF(D458:AH458,\"F\"))","v":0},{"$f":"IF(A458=\"\",\"\",COUNTIF(D458:AH458,\"S\"))","v":21},{"$f":"IF(A458=\"\",\"\",COUNTIF(D458:AH458,\"N\"))","v":0},{"$f":"IF(A458=\"\",\"\",COUNTIF(D458:AH458,\"U\"))","v":0},{"$f":"IF(A458=\"\",\"\",COUNTIF(D458:AH458,\"K\"))","v":0}]
["P002","Anne Bernard","Team 1",null,"S","S","S","S","S",null,null,"S","S","S","S","S",null,null,"S","S","S","S","S",null,null,"S","S","S","S","S",null,null,"S",null,0,21,0,0,0]
["P003","Michel Dubois","Team 1",null,"S","S","S","S","S",null,null,"S","S","S","S","S",null,null,"S","S","S","S","S",null,null,"S","S","S","S","S",null,null,"S",null,0,21,0,0,0]
["P004","Patricia Robert","Team 2",null,"N","N","N","N","N",null,null,"N","N","N","N","N",null,null,"N","N","N","N","N",null,null,"N","N","N","N","N",null,null,"N",null,0,0,21,0,0]
["P005","Thomas Richard","Team 2",null,"N","N","N","N","N",null,null,"N","N","N","N","N",null,null,"N","N","N","N","N",null,null,"N","N","N","N","N",null,null,"N",null,0,0,21,0,0]
["P006","Julie Petit","Team 2",null,"N","N","N","N","N",null,null,"N","N","N","N","N",null,null,"N","N","N","N","N",null,null,"N","N","N","N","N",null,null,"N",null,0,0,21,0,0]
["P007","Laura Durand","Team 3",null,"F","F","F","F","F",null,null,"F","F","F","F","F",null,null,"F","F","F","F","F",null,null,"F","F","F","F","F",null,null,"F",null,21,0,0,0,0]
["P008","Stéphane Leroy","Team 3",null,"F","F","F","F","F",null,null,"F","F","F","F","F",null,null,"F","F","F","F","F",null,null,"F","F","F","F","F",null,null,"F",null,21,0,0,0,0]
["P009","Nina Moreau","Team 3",null,"F","F","F","F","F",null,null,"F","F","F","F","F",null,null,"F","F","F","F","F",null,null,"F","F","F","F","F",null,null,"F",null,21,0,0,0,0]
[null,null,null,null,null,null,null,null,null,null,null,null,null,null,null,null,null,null,null,null,null,null,null,null,null,null,null,null,null,null,null,null,null,null,"","","","",""]
[null,null,null,null,null,null,null,null,null,null,null,null,null,null,null,null,null,null,null,null,null,null,null,null,null,null,null,null,null,null,null,null,null,null,"","","","",""]
[null,null,null,null,null,null,null,null,null,null,null,null,null,null,null,null,null,null,null,null,null,null,null,null,null,null,null,null,null,null,null,null,null,null,"","","","",""]
[null,null,null,null,null,null,null,null,null,null,null,null,null,null,null,null,null,null,null,null,null,null,null,null,null,null,null,null,null,null,null,null,null,null,"","","","",""]
[null,null,null,null,null,null,null,null,null,null,null,null,null,null,null,null,null,null,null,null,null,null,null,null,null,null,null,null,null,null,null,null,null,null,"","","","",""]
[null,null,null,null,null,null,null,null,null,null,null,null,null,null,null,null,null,null,null,null,null,null,null,null,null,null,null,null,null,null,null,null,null,null,"","","","",""]
[null,null,null,null,null,null,null,null,null,null,null,null,null,null,null,null,null,null,null,null,null,null,null,null,null,null,null,null,null,null,null,null,null,null,"","","","",""]
[null,null,null,null,null,null,null,null,null,null,null,null,null,null,null,null,null,null,null,null,null,null,null,null,null,null,null,null,null,null,null,null,null,null,"","","","",""]
[null,null,null,null,null,null,null,null,null,null,null,null,null,null,null,null,null,null,null,null,null,null,null,null,null,null,null,null,null,null,null,null,null,null,"","","","",""]
[null,null,null,null,null,null,null,null,null,null,null,null,null,null,null,null,null,null,null,null,null,null,null,null,null,null,null,null,null,null,null,null,null,null,"","","","",""]
[null,null,null,null,null,null,null,null,null,null,null,null,null,null,null,null,null,null,null,null,null,null,null,null,null,null,null,null,null,null,null,null,null,null,"","","","",""]
[null,null,null,null,null,null,null,null,null,null,null,null,null,null,null,null,null,null,null,null,null,null,null,null,null,null,null,null,null,null,null,null,null,null,"","","","",""]
[null,null,null,null,null,null,null,null,null,null,null,null,null,null,null,null,null,null,null,null,null,null,null,null,null,null,null,null,null,null,null,null,null,null,"","","","",""]
[null,null,null,null,null,null,null,null,null,null,null,null,null,null,null,null,null,null,null,null,null,null,null,null,null,null,null,null,null,null,null,null,null,null,"","","","",""]
[null,null,null,null,null,null,null,null,null,null,null,null,null,null,null,null,null,null,null,null,null,null,null,null,null,null,null,null,null,null,null,null,null,null,"","","","",""]
[null,null,null,null,null,null,null,null,null,null,null,null,null,null,null,null,null,null,null,null,null,null,null,null,null,null,null,null,null,null,null,null,null,null,"","","","",""]
[null,null,null,null,null,null,null,null,null,null,null,null,null,null,null,null,null,null,null,null,null,null,null,null,null,null,null,null,null,null,null,null,null,null,"","","","",""]
[null,null,null,null,null,null,null,null,null,null,null,null,null,null,null,null,null,null,null,null,null,null,null,null,null,null,null,null,null,null,null,null,null,null,"","","","",""]
[null,null,null,null,null,null,null,null,null,null,null,null,null,null,null,null,null,null,null,null,null,null,null,null,null,null,null,null,null,null,null,null,null,null,"","","","",""]
[null,null,null,null,null,null,null,null,null,null,null,null,null,null,null,null,null,null,null,null,null,null,null,null,null,null,null,null,null,null,null,null,null,null,"","","","",""]
[null,null,null,null,null,null,null,null,null,null,null,null,null,null,null,null,null,null,null,null,null,null,null,null,null,null,null,null,null,null,null,null,null,null,"","","","",""]
[null,null,null,null,null,null,null,null,null,null,null,null,null,null,null,null,null,null,null,null,null,null,null,null,null,null,null,null,null,null,null,null,null,null,"","","","",""]
[null,null,null,null,null,null,null,null,null,null,null,null,null,null,null,null,null,null,null,null,null,null,null,null,null,null,null,null,null,null,null,null,null,null,"","","","",""]
[null,null,null,null,null,null,null,null,null,null,null,null,null,null,null,null,null,null,null,null,null,null,null,null,null,null,null,null,null,null,null,null,null,null,"","","","",""]
[null,null,null,null,null,null,null,null,null,null,null,null,null,null,null,null,null,null,null,null,null,null,null,null,null,null,null,null,null,null,null,null,null,null,"","","","",""]
[null,null,null,null,null,null,null,null,null,null,null,null,null,null,null,null,null,null,null,null,null,null,null,null,null,null,null,null,null,null,null,null,null,null,"","","","",""]
[null,null,null,null,null,null,null,null,null,null,null,null,null,null,null,null,null,null,null,null,null,null,null,null,null,null,null,null,null,null,null,null,null,null,"","","","",""]
[null,null,null,null,null,null,null,null,null,null,null,null,null,null,null,null,null,null,null,null,null,null,null,null,null,null,null,null,null,null,null,null,null,null,"","","","",""]
[null,null,null,null,null,null,null,null,null,null,null,null,null,null,null,null,null,null,null,null,null,null,null,null,null,null,null,null,null,null,null,null,null,null,"","","","",""]
[null,null,null,null,null,null,null,null,null,null,null,null,null,null,null,null,null,null,null,null,null,null,null,null,null,null,null,null,null,null,null,null,null,null,"","","","",""]
[null,null,null,null,null,null,null,null,null,null,null,null,null,null,null,null,null,null,null,null,null,null,null,null,null,null,null,null,null,null,null,null,null,null,"","","","",""]
[]
["Décembre 2026"]
[null,null,null,"Ma","Me","Je","Ve","Sa","Di","Lu","Ma","Me","Je","Ve","Sa","Di","Lu","Ma","Me","Je","Ve","Sa","Di","Lu","Ma","Me","Je","Ve","Sa","Di","Lu","Ma","Me","Je"]
[null,null,null,1,2,3,4,5,6,7,8,9,10,11,12,13,14,15,16,17,18,19,20,21,22,23,24,25,26,27,28,29,30,31]
["ID du personnel","Nom","Équipe","01 Ma","02 Me","03 Je","04 Ve","05 Sa","06 Di","07 Lu","08 Ma","09 Me","10 Je","11 Ve","12 Sa","13 Di","14 Lu","15 Ma","16 Me","17 Je","18 Ve","19 Sa","20 Di","21 Lu","22 Ma","23 Me","24 Je","25 Ve","26 Sa","27 Di","28 Lu","29 Ma","30 Me","31 Je","F total","S total","N total","U total","K total"]
["P001","Jean Martin","Team 1","N","N","N","N",null,null,"N","N","N","N","N",null,null,"N","N","N","N","N",null,null,"N","N","N","N","N",null,null,"N","N","N","N",{"$f":"IF(A503=\"\",\"\",COUNTIF(D503:AH503,\"F\"))","v":0},{"$f":"IF(A503=\"\",\"\",COUNTIF(D503:AH503,\"S\"))","v":0},{"$f":"IF(A503=\"\",\"\",COUNTIF(D503:AH503,\"N\"))","v":23},{"$f":"IF(A503=\"\",\"\",COUNTIF(D503:AH503,\"U\"))","v":0},{"$f":"IF(A503=\"\",\"\",COUNTIF(D503:AH503,\"K\"))","v":0}]
["P002","Anne Bernard","Team 1","N","N","N","N",null,null,"N","N","N","N","N",null,null,"N","N","N","N","N",null,null,"N","N","N","N","N",null,null,"N","N","N","N",0,0,23,0,0]
["P003","Michel Dubois","Team 1","N","N","N","N",null,null,"N","N","N","N","N",null,null,"N","N","N","N","N",null,null,"N","N","N","N","N",null,null,"N","N","N","N",0,0,23,0,0]
["P004","Patricia Robert","Team 2","F","F","F","F",null,null,"F","F","F","F","F",null,null,"F","F","F","F","F",null,null,"F","F","F","F","F",null,null,"F","F","F","F",23,0,0,0,0]
["P005","Thomas Richard","Team 2","F","F","F","F",null,null,"F","F","F","F","F",null,null,"F","F","F","F","F",null,null,"F","F","F","F","F",null,null,"F","F","F","F",23,0,0,0,0]
["P006","Julie Petit","Team 2","F","F","F","F",null,null,"F","F","F","F","F",null,null,"F","F","F","F","F",null,null,"F","F","F","F","F",null,null,"F","F","F","F",23,0,0,0,0]
["P007","Laura Durand","Team 3","S","S","S","S",null,null,"S","S","S","S","S",null,null,"S","S","S","S","S",null,null,"S","S","S","S","S",null,null,"S","S","S","S",0,23,0,0,0]
["P008","Stéphane Leroy","Team 3","S","S","S","S",null,null,"S","S","S","S","S",null,null,"S","S","S","S","S",null,null,"S","S","S","S","S",null,null,"S","S","S","S",0,23,0,0,0]
["P009","Nina Moreau","Team 3","S","S","S","S",null,null,"S","S","S","S","S",null,null,"S","S","S","S","S",null,null,"S","S","S","S","S",null,null,"S","S","S","S",0,23,0,0,0]
[null,null,null,null,null,null,null,null,null,null,null,null,null,null,null,null,null,null,null,null,null,null,null,null,null,null,null,null,null,null,null,null,null,null,"","","","",""]
[null,null,null,null,null,null,null,null,null,null,null,null,null,null,null,null,null,null,null,null,null,null,null,null,null,null,null,null,null,null,null,null,null,null,"","","","",""]
[null,null,null,null,null,null,null,null,null,null,null,null,null,null,null,null,null,null,null,null,null,null,null,null,null,null,null,null,null,null,null,null,null,null,"","","","",""]
[null,null,null,null,null,null,null,null,null,null,null,null,null,null,null,null,null,null,null,null,null,null,null,null,null,null,null,null,null,null,null,null,null,null,"","","","",""]
[null,null,null,null,null,null,null,null,null,null,null,null,null,null,null,null,null,null,null,null,null,null,null,null,null,null,null,null,null,null,null,null,null,null,"","","","",""]
[null,null,null,null,null,null,null,null,null,null,null,null,null,null,null,null,null,null,null,null,null,null,null,null,null,null,null,null,null,null,null,null,null,null,"","","","",""]
[null,null,null,null,null,null,null,null,null,null,null,null,null,null,null,null,null,null,null,null,null,null,null,null,null,null,null,null,null,null,null,null,null,null,"","","","",""]
[null,null,null,null,null,null,null,null,null,null,null,null,null,null,null,null,null,null,null,null,null,null,null,null,null,null,null,null,null,null,null,null,null,null,"","","","",""]
[null,null,null,null,null,null,null,null,null,null,null,null,null,null,null,null,null,null,null,null,null,null,null,null,null,null,null,null,null,null,null,null,null,null,"","","","",""]
[null,null,null,null,null,null,null,null,null,null,null,null,null,null,null,null,null,null,null,null,null,null,null,null,null,null,null,null,null,null,null,null,null,null,"","","","",""]
[null,null,null,null,null,null,null,null,null,null,null,null,null,null,null,null,null,null,null,null,null,null,null,null,null,null,null,null,null,null,null,null,null,null,"","","","",""]
[null,null,null,null,null,null,null,null,null,null,null,null,null,null,null,null,null,null,null,null,null,null,null,null,null,null,null,null,null,null,null,null,null,null,"","","","",""]
[null,null,null,null,null,null,null,null,null,null,null,null,null,null,null,null,null,null,null,null,null,null,null,null,null,null,null,null,null,null,null,null,null,null,"","","","",""]
[null,null,null,null,null,null,null,null,null,null,null,null,null,null,null,null,null,null,null,null,null,null,null,null,null,null,null,null,null,null,null,null,null,null,"","","","",""]
[null,null,null,null,null,null,null,null,null,null,null,null,null,null,null,null,null,null,null,null,null,null,null,null,null,null,null,null,null,null,null,null,null,null,"","","","",""]
[null,null,null,null,null,null,null,null,null,null,null,null,null,null,null,null,null,null,null,null,null,null,null,null,null,null,null,null,null,null,null,null,null,null,"","","","",""]
[null,null,null,null,null,null,null,null,null,null,null,null,null,null,null,null,null,null,null,null,null,null,null,null,null,null,null,null,null,null,null,null,null,null,"","","","",""]
[null,null,null,null,null,null,null,null,null,null,null,null,null,null,null,null,null,null,null,null,null,null,null,null,null,null,null,null,null,null,null,null,null,null,"","","","",""]
[null,null,null,null,null,null,null,null,null,null,null,null,null,null,null,null,null,null,null,null,null,null,null,null,null,null,null,null,null,null,null,null,null,null,"","","","",""]
[null,null,null,null,null,null,null,null,null,null,null,null,null,null,null,null,null,null,null,null,null,null,null,null,null,null,null,null,null,null,null,null,null,null,"","","","",""]
[null,null,null,null,null,null,null,null,null,null,null,null,null,null,null,null,null,null,null,null,null,null,null,null,null,null,null,null,null,null,null,null,null,null,"","","","",""]
[null,null,null,null,null,null,null,null,null,null,null,null,null,null,null,null,null,null,null,null,null,null,null,null,null,null,null,null,null,null,null,null,null,null,"","","","",""]
[null,null,null,null,null,null,null,null,null,null,null,null,null,null,null,null,null,null,null,null,null,null,null,null,null,null,null,null,null,null,null,null,null,null,"","","","",""]
[null,null,null,null,null,null,null,null,null,null,null,null,null,null,null,null,null,null,null,null,null,null,null,null,null,null,null,null,null,null,null,null,null,null,"","","","",""]
[null,null,null,null,null,null,null,null,null,null,null,null,null,null,null,null,null,null,null,null,null,null,null,null,null,null,null,null,null,null,null,null,null,null,"","","","",""]
[null,null,null,null,null,null,null,null,null,null,null,null,null,null,null,null,null,null,null,null,null,null,null,null,null,null,null,null,null,null,null,null,null,null,"","","","",""]
[null,null,null,null,null,null,null,null,null,null,null,null,null,null,null,null,null,null,null,null,null,null,null,null,null,null,null,null,null,null,null,null,null,null,"","","","",""]
[null,null,null,null,null,null,null,null,null,null,null,null,null,null,null,null,null,null,null,null,null,null,null,null,null,null,null,null,null,null,null,null,null,null,"","","","",""]
[null,null,null,null,null,null,null,null,null,null,null,null,null,null,null,null,null,null,null,null,null,null,null,null,null,null,null,null,null,null,null,null,null,null,"","","","",""]
[null,null,null,null,null,null,null,null,null,null,null,null,null,null,null,null,null,null,null,null,null,null,null,null,null,null,null,null,null,null,null,null,null,null,"","","","",""]
[null,null,null,null,null,null,null,null,null,null,null,null,null,null,null,null,null,null,null,null,null,null,null,null,null,null,null,null,null,null,null,null,null,null,"","","","",""]

{"sheet":"06_Affectations","index":6,"n_rows":4,"n_cols":10,"rows_kept":4,"cut":false,"hidden":false,"merged":[[2,0,2,9]]}
["Affectations"]
["Affectations chronologiques par équipe (générées et manuelles)."]
["Rempli après Créer plan. Les lignes manuelles restent lors de l'effacement."]
["Date","Début","Fin","Équipe","Ordre","Équipement","Personnel","Heures","Statut","Avertissement"]

{"sheet":"07_PlanOrdres","index":7,"n_rows":4,"n_cols":11,"rows_kept":4,"cut":false,"hidden":false,"merged":[[2,0,2,10]]}
["Plan des ordres"]
["Ordres chronologiques avec équipement et personnel par intervalle."]
["Rempli après Créer plan. Si capacité dépassée, effacer le plan ou raccourcir la période."]
["Ordre","Description","Date","Début","Fin","Heures","Équipe","Équipement","Personnel","Statut","Avertissement"]

{"sheet":"08_Affichage","index":8,"n_rows":1,"n_cols":1,"rows_kept":1,"cut":false,"hidden":false,"merged":[[0,0,0,2],[0,3,0,5]]}
["Affichage: Plan d'affectations"]

{"sheet":"_Config","index":9,"n_rows":94,"n_cols":2,"rows_kept":94,"cut":false,"hidden":true,"merged":[]}
["key","value"]
["locale","fr-FR"]
["yes","Oui"]
["no","Non"]
["open_status","Ouvert"]
["planned_status","Planifié"]
["status_ok","OK"]
["status_idle","Sans tâche"]
["reason_without_task","Aucun ordre pour cette équipe"]
["reason_equipment","Équipement indisponible"]
["reason_staff","Personnel indisponible"]
["reason_skill","Compétence requise indisponible"]
["reason_deadline","L'échéance ne peut pas être respectée"]
["reason_overdue","Terminé après la date d'échéance"]
["reason_earliest","Commencé avant le début au plus tôt"]
["msg_remaining_hours","Il reste {hours} heures non planifiées dans la période de planification."]
["msg_draft_ok","Plan créé. Les saisies manuelles ont été conservées."]
["msg_draft_fail","Échec de la création du plan."]
["msg_cleared","Plan généré effacé. Les saisies manuelles restent."]
["msg_check_ok","Vérification OK: aucun conflit sur la période."]
["msg_check_issues","{n} problème(s) sur la période. Consultez les cartes de statut."]
["msg_print","Aperçu de l'affichage ouvert."]
["msg_bad_period","Période invalide. L'année de début doit correspondre à l'année de planification ; nombre de jours 1–31."]
["msg_validation_blocked","{n} erreur(s): corrigez avant de créer le plan. Détails dans _Config à partir de la ligne 82."]
["msg_validation_error","Ligne {row} ({orderId}) : {field} - {detail}"]
["msg_duplicate_order_id","ID de commande en double"]
["msg_duplicate_staff_id","ID de personnel en double"]
["msg_duplicate_equipment_id","ID d'équipement en double"]
["msg_duplicate_shift_code","Code de poste en double"]
["msg_duplicate_roster_staff_id","ID de personnel en double dans le planning"]
["field_roster_month","Mois {month}"]
["msg_invalid_date","Date invalide"]
["msg_due_before_earliest","La date d'échéance est antérieure au début le plus tôt"]
["msg_invalid_hours","La durée doit être supérieure à 0"]
["msg_missing_equipment","ID d'équipement manquant"]
["msg_unknown_equipment","Équipement inconnu ou inactif"]
["msg_no_productive_shifts","Aucun type de poste productif défini"]
["msg_no_open_orders","Aucune commande ouverte à planifier"]
["msg_capacity_exceeded","Capacité de planification dépassée. Réduisez la portée ou effacez le plan"]
["msg_draft_incomplete","Le plan peut être incomplet. Effacez et réessayez après correction."]
["msg_draft_summary","Plan créé : {planned} entièrement planifiées, {unfilled} partiellement ouvertes, {skill} lacunes de compétence."]
["msg_clear_confirm","Supprimer le plan généré ? Les saisies manuelles de poste restent."]
["msg_error","Erreur : "]
["msg_check_detail","Détails dans _Config à partir de la ligne 82."]
["msg_week_manual","Saisissez la date de début et le nombre de jours sur la feuille Démarrage."]
["msg_warning_roster_empty","Avertissement : aucun poste dans la période de planification."]
["msg_warning_no_skill_staff","Avertissement : aucun personnel actif avec la compétence {field} pour l'équipement {orderId}."]
["msg_print_no_data","Aucune affectation dans la période sélectionnée pour l'affichage. Exécutez d'abord « Créer plan »."]
["field_order_earliest","Début au plus tôt"]
["field_order_due","Date d'échéance"]
["field_order_hours","Durée en heures"]
["field_order_equipment","ID de l'équipement"]
["field_order_id","Ordre"]
["field_staff_id","ID du personnel"]
["field_equip_id","ID de l'équipement"]
["field_shift_code","Code"]
["category_productive","productif"]
["data_first_row",5]
["max_scan_row",500]
["day_start_col",4]
["max_days",31]
["sum_start_col",35]
["staff_capacity",40]
["rows_per_month",45]
["data_row_offset",4]
["skill_start_col",5]
["assignment_capacity",300]
["order_plan_capacity",600]
["plan_data_capacity",600]
[]
["month_start_rows"]
["month_01",4]
["month_02",49]
["month_03",94]
["month_04",139]
["month_05",184]
["month_06",229]
["month_07",274]
["month_08",319]
["month_09",364]
["month_10",409]
["month_11",454]
["month_12",499]
["aushang_planned_at","Planifié le"]
["aushang_no_entries","Aucune affectation sur ce poste"]
["aushang_day_format","{weekday} {day} {month} {year}"]
["weekday_names","lundi|mardi|mercredi|jeudi|vendredi|samedi|dimanche"]
["month_names","Janvier|Février|Mars|Avril|Mai|Juin|Juillet|Août|Septembre|Octobre|Novembre|Décembre"]
["aushang_col_staff","Personnel"]
["aushang_col_order","Ordre"]
["aushang_col_equipment","Équipement"]
["aushang_col_from","Début"]
["aushang_col_to","Fin"]
["aushang_col_note","Avertissement"]

{"sheet":"_PlanData","index":10,"n_rows":1,"n_cols":10,"rows_kept":1,"cut":false,"hidden":true,"merged":[]}
["start","end","shift","staff_id","equipment_id","order_id","hours","status","warning","generated"]